Workbook

Sheet (1) Manual de operação

Sheet (2) Premissas
B2: 2. Premissas | AG2: =SUM(AG3:AG1048576) -> 
D5: Premissas
B8: 2.1 Conversores de unidades
C9: Conversão de Energia | D9: joule | E9: kilowatt-hora | F9: Caloria (kcal IT) | G9: BTU (IT)
C10: 1 J | D10: 1 | E10: 2.77778e-07 | F10: 0.0002388459 | G10: 0.0009478171
C11: 1 kWh | D11: 3600000 | E11: 1 | F11: 859.8452279 | G11: 3412.141633
C12: 1 kcal (IT) | D12: 4186.8 | E12: 0.001163 | F12: 1 | G12: 3.968320719
C13: 1 BTU (IT) | D13: 1055.055853 | E13: 0.0002930711 | F13: 0.2519957611 | G13: 1
B15: 2.2 Premissas adicionais | F15: Valores | G15: Unidade
E16: Fator de coprodução de O2 por eletrólise | F16: 8 | G16: kg O2/kg H2
E17: Densidade do O2 | F17: =0.6998*293.15/273.15 -> 0.7510392458 | G17: kg/m3
B19: 2.3 Lista de combustíveis
C20: Combustível | D20: Unidade comercial (S.I.) | E20: Densidade (kg/m3) | F20: Poder calorífico inferior (MJ/S.I.) | G20: Fator de emissão (ton CO2eq/TJ)
C21: H2 | D21: kg | E21: 0.0837520938 | F21: 119.88 | G21: 0
C22: Gás Natural | D22: m3 | E22: 0.74 | F22: 36.84384 | G22: 56.152
C23: Carvão | D23: kg | E23: n/a | F23: 26.7 | G23: 98.975
C24: Óleo combustível | D24: m3 | E24: 1000 | F24: 40151.412 | G24: 77.796
C25: Coque de petróleo | D25: kg | E25: 1040 | F25: 35.127252 | G25: 97.896
C26: Outro
AG70: =#REF!-#REF! -> 

Sheet (3) Eletrolisadores
B2: 3. Eletrolisadores
C4: Modelo | D4: Fabricante | E4: Tecnologia | F4: Pressão de saída [bar] | G4: Potência [kW] | H4: Capacidade de produção [kg/h] | I4: Consumo de energia [kWh/kgH2] | J4: Capacidade específica [Nm3/h/kW] | K4: Capacidade específica [kg/h/kW] | L4: Consumo de água [L/kg H2]
C5: (20 MW) HyLYZER® -4.000-30 | D5: Cummins | E5: PEM | F5: 30 | G5: 20000 | H5: 330.8 | I5: 51 | J5: 0.2 | K5: 0.01654 | L5: 16.9286578
C6: (5 MW) HyLYZER® -1.000-30 | D6: Cummins | E6: PEM | F6: 30 | G6: 5000 | H6: 82.7 | I6: 51.99516324 | J6: 0.2 | K6: 0.01654 | L6: 16.9286578
C7: (2.5 MW) HyLYZER® -500-30 | D7: Cummins | E7: PEM | F7: 30 | G7: 2500 | H7: 41.35 | I7: 61.66868198 | J7: 0.2 | K7: 0.01654 | L7: 16.9286578
C8: (1.25 MW) SiLYZER 200 | D8: Siemens | E8: PEM | F8: 35 | G8: 1250 | H8: 18.6075 | I8: 62 | J8: 0.18 | K8: 0.014886 | L8: 12.09189843
C9: (1.25 MW) SiLYZER 300 | D9: Siemens | E9: PEM | F9: 35 | G9: 1250 | H9: 18.6075 | I9: 62 | J9: 0.18 | K9: 0.014886 | L9: 10
C10: (0.5 MW) HySTAT® - 100 | D10: Cummins | E10: ALK | F10: 10 | G10: 500 | H10: 8.27 | I10: 57.5 | J10: 0.2 | K10: 0.01654 | L10: 15
C11: (0.45 MW) HyProvide - A90 | D11: Green Hydrogen | E11: ALK | F11: 35 | G11: 450 | H11: 8.1 | I11: 53.6 | J11: 0.2 | K11: 0.01654 | L11: 10.88270859
C12: (19.4 MW) Nel A3880 | D12: Nel Hydrogen | E12: ALK | F12: 1-200 | G12: 19400 | H12: 320.876 | I12: 53.20435308 | J12: 0.2 | K12: 0.01654 | L12: 10.88270859
C13: (20 MW) Nel M4000 | D13: Nel Hydrogen | E13: PEM | F13: 30 | G13: 20000 | H13: 330.8 | I13: 54.77629988 | J13: 0.2 | K13: 0.01654 | L13: 10.88270859
C14: (2.07 MW) HGAS3SP | D14: ITM Power | E14: PEM | F14: 30 | G14: 2070 | H14: 36 | I14: 57.5 | J14: 0.2 | K14: 0.0174 | L14: 25

Sheet (4) Entrada de dados
B2: 4. Entradas | AG2: =SUM(AG3:AG1048576) -> 0
D5: Conjecturas: Produção de Hidrogênio Verde
C7: Código de Cores
C8: Informativo
C9: Dados de entrada
C13: 4.1 Diagnóstico e análise preliminar | F13: Valor | G13: Unidade | H13: Descrição
E14: Combustível ou fonte fóssil | F14: Gás Natural | H14: Selecionar o combustível fóssil a ser substituído dentro da lista. Caso deseje utilizar outro combustível, a unidade comercial (m3 ou kg), o equivalente energético (MJ/unidade comercial) e o fator de emissão (ton CO2eq/TJ) da fonte devem ser fornecidos nos campos abaixo
E15: ="Consumo anual de "&F14 -> Consumo anual de Gás Natural | F15: 20000000 | G15: =INDEX('(2) Premissas'!D21:D25,MATCH('(4) Entrada de dados'!F14,'(2) Premissas'!C21:C25,0)) -> m3 | H15: Definir o consumo total anual de combustível fóssil sendo utilizado em um processo, conforme a unidade comercial indicada ao lado
E16: Equivalente energético | F16: =INDEX('(2) Premissas'!F21:F25,MATCH('(4) Entrada de dados'!F14,'(2) Premissas'!C21:C25,0)) -> 36.84384 | G16: ="MJ/"&Unidade_fonte_substituida -> MJ/m3 | H16: Poder calorífico do combustível selecionado (captado na lista de combustíveis), a ser utilizado na simulação
E17: Fator de emissão | F17: =INDEX('(2) Premissas'!G21:G25,MATCH('(4) Entrada de dados'!F14,'(2) Premissas'!C21:C25,0)) -> 56.152 | G17: tonCO2eq/TJ | H17: Fator de emissão do combustível selecionado (captado na lista de combustíveis), a ser utilizado na simulação
E18: ="Consumo de energia associado ao uso de "&F14 -> Consumo de energia associado ao uso de Gás Natural | F18: =Consumo_FonteFossil*F16*10^-6 -> 736.8768 | G18: TJ/ano | H18: Resultado da energia consumida, associado ao combustível selecionado
E19: ="Emissões de CO2 associadas ao uso de "&F14 -> Emissões de CO2 associadas ao uso de Gás Natural | F19: =F18*fator_emissao_fonte_substituida -> 41377.10607 | G19: ton CO2eq/ano | H19: Resultado das emissões de CO2 que o processo proporciona
E20: Substituição desejada da fonte fóssil | F20: 0.05 | G20: (-) | H20: Definir o quanto da energia consumida atualmente se deseja ou poder ser substituído por H2
E21: ="A substituição reduzirá o consumo de "&F14&" em" -> A substituição reduzirá o consumo de Gás Natural em | F21: =F20*F18 -> 36.84384 | G21: TJ/ano | H21: Resultado de quanto da energia sera substituída pelo uso de H2
E22: As emissões evitadas, segundo a substituição, seriam de | F22: =F21*fator_emissao_fonte_substituida -> 2068.855304 | G22: ton CO2eq/ano | H22: Resultado da redução de emissões esperada ao deixar de utilizar a fonte fóssil tradicional
E23: Uso de H2 sustentável para promover a substituição | F23: =F21/(PCI_H2/10^3) -> 307.3393393 | G23: ton H2/ano | H23: Resultado da quantidade de H2 sustentável seria necessário para realizar a substituição
E24: Capacidade de eletrólise sugerida para atender a substituição | F24: =F23*62/365/24 -> 2.175232767 | G24: MW | H24: Sugestão da capacidade instalada de eletrólise para se iniciar a avaliação. Considera-se o uso de 100% da capacidade de um eletrolisador, com uma eficiência de 62 kWh/kg. Esse valor pode ser utilizado como referência para a seleção do eletrolisador do projeto.
C26: 4.2 Preços e custos de insumos | F26: Valor | G26: Unidade | H26: Descrição
E27: Moeda | F27: BRL | H27: Moeda adotada para as entradas de preços e custos
E28: ="Custo do "&F14&"" -> Custo do Gás Natural | F28: 4 | G28: =Moeda&"/"&Unidade_fonte_substituida -> BRL/m3 | H28: Custo da fonte fóssil atualmente utilizada, relacionado ao ganho virtual de receita ao se evitar o uso da fonte fóssil, devido ao uso do H2 como substituto
E29: Custo da água consumida pelo eletrolisador | F29: 0.6 | G29: =Moeda&"/m3" -> BRL/m3 | H29: Custo associado ao consumo específico de H2O para o eletrolisador produzir H2 e O2
E30: Preço de oportunidade para o O2 | F30: 0 | G30: =Moeda&"/m3" -> BRL/m3 | H30: Preço de ganho de receita pelo O2 por meios comerciais ou outras oportunidades consideradas pelo projetista (redução de compra de matéria-prima, redução de consumo de combustível recorrendo à queima com atmosfera enriquecida)
E31: Custo da energia elétrica | F31: 150 | G31: =Moeda&"/MWh" -> BRL/MWh | H31: Custo associado a energia elétrica acessível à fábrica
E32: Preço do crédito de carbono | F32: 0 | G32: =Moeda&"/ton CO2" -> BRL/ton CO2 | H32: Preço representativo do crédito de carbono, acessível em mercados regulados ou voluntários
C34: 4.3 Condições operacionais do projeto | F34: Valor | G34: Unidade | H34: Descrição
E35: Fator Operacional | F35: 1 | G35: (-) | H35: Expectativa de operação do projeto, aplicável sobre o fator de capacidade do eletrolisador e a operação da fábrica
E36: Total de horas trabalhadas em um ano | F36: 8760 | G36: h | H36: Total de horas em que a operação ocorre em 1 ano
E37: Período de investimento | F37: 2 | G37: anos | H37: Inserir valores entre 1 e 5. Este campo determina o ano em que o projeto entra em operação (ex: incidência de montantes financeiros operacionais)
E38: Taxa de Desconto | F38: 0.05 | G38: a.a. | H38: Taxa de desconto real aplicável sobre os montantes financeiros incidentes no fluxo de caixa
C40: 4.4 Seção de eletrolisadores | H40: Descrição
E41: Custo unitário do eletrolisador por unidade de potência instalada | F41: 7261 | G41: =Moeda&"/kW" -> BRL/kW | H41: Custo unitário do eletrolisador, por unidade de potência instalada do eletrolisador.
E42: Taxa de degradação do eletrolisador | F42: 0.01 | G42: a.a. | H42: Redução da capacidade do eletrolisador de produzir H2, utilizando-se do mesmo consumo de energia elétrica
C44: 4.5 Seleção de eletrolisadores - utilizar lista existente de eletrolisadores ou introduzir um eletrolisador com suas especificações técnicas | O44: Valores anuais
C45: Qtd | D45: Modelo | E45: Fabricante | F45: Tecnologia | G45: Pressão de saída [bar] | H45: Potência [kW] | I45: Capacidade de produção [kg/h] | J45: Consumo de energia [kWh/kgH2] | K45: Capacidade específica [Nm3/h/kW] | L45: Capacidade específica [kg/h/kW] | M45: Consumo de água [L/kg H2] | N45: Custo do eletrolisador | O45: Produção H2 [ton/ano] | P45: Produção O2 [ton/ano] | Q45: Consumo água [m3/ano] | R45: Consumo de energia elétrica [MWh/ano] | S45: Descrição
C46: 0 | D46: (2.5 MW) HyLYZER® -500-30 | E46: =VLOOKUP($D$46,'(3) Eletrolisadores'!$C$4:$L$14,(COUNTA($D$46:D46)+1),0) -> Cummins | F46: =VLOOKUP($D$46,'(3) Eletrolisadores'!$C$4:$L$14,(COUNTA($D$46:E46)+1),0) -> PEM | G46: =VLOOKUP($D$46,'(3) Eletrolisadores'!$C$4:$L$14,(COUNTA($D$46:F46)+1),0) -> 30 | H46: =VLOOKUP($D$46,'(3) Eletrolisadores'!$C$4:$L$14,(COUNTA($D$46:G46)+1),0) -> 2500 | I46: =VLOOKUP($D$46,'(3) Eletrolisadores'!$C$4:$L$14,(COUNTA($D$46:H46)+1),0) -> 41.35 | J46: =VLOOKUP($D$46,'(3) Eletrolisadores'!$C$4:$L$14,(COUNTA($D$46:I46)+1),0) -> 61.66868198 | K46: =VLOOKUP($D$46,'(3) Eletrolisadores'!$C$4:$L$14,(COUNTA($D$46:J46)+1),0) -> 0.2 | L46: =VLOOKUP($D$46,'(3) Eletrolisadores'!$C$4:$L$14,(COUNTA($D$46:K46)+1),0) -> 0.01654 | M46: =VLOOKUP($D$46,'(3) Eletrolisadores'!$C$4:$L$14,(COUNTA($D$46:L46)+1),0) -> 16.9286578 | N46: =Custo.Uni_ELET*H46*C46 -> 0 | O46: =I46*TDT*Fator_Operacional/10^3*C46 -> 0 | P46: =I46*O2_kg_por_H2_kg*TDT*Fator_Operacional/10^3*C46 -> 0 | Q46: =-M46*I46*TDT*Fator_Operacional/10^3*C46 -> 0 | R46: =-J46*I46*TDT*Fator_Operacional/10^3*C46 -> 0 | S46: Selecione um eletrolisador na lista, bem como a quantidade desejada.
C47: 1 | D47: (5 MW) HyLYZER® -1.000-30 | E47: =VLOOKUP($D$47,'(3) Eletrolisadores'!$C$4:$L$14,(COUNTA($D$47:D47)+1),0) -> Cummins | F47: =VLOOKUP($D$47,'(3) Eletrolisadores'!$C$4:$L$14,(COUNTA($D$47:E47)+1),0) -> PEM | G47: =VLOOKUP($D$47,'(3) Eletrolisadores'!$C$4:$L$14,(COUNTA($D$47:F47)+1),0) -> 30 | H47: =VLOOKUP($D$47,'(3) Eletrolisadores'!$C$4:$L$14,(COUNTA($D$47:G47)+1),0) -> 5000 | I47: =VLOOKUP($D$47,'(3) Eletrolisadores'!$C$4:$L$14,(COUNTA($D$47:H47)+1),0) -> 82.7 | J47: =VLOOKUP($D$47,'(3) Eletrolisadores'!$C$4:$L$14,(COUNTA($D$47:I47)+1),0) -> 51.99516324 | K47: =VLOOKUP($D$47,'(3) Eletrolisadores'!$C$4:$L$14,(COUNTA($D$47:J47)+1),0) -> 0.2 | L47: =VLOOKUP($D$47,'(3) Eletrolisadores'!$C$4:$L$14,(COUNTA($D$47:K47)+1),0) -> 0.01654 | M47: =VLOOKUP($D$47,'(3) Eletrolisadores'!$C$4:$L$14,(COUNTA($D$47:L47)+1),0) -> 16.9286578 | N47: =Custo.Uni_ELET*H47*C47 -> 36305000 | O47: =I47*TDT*Fator_Operacional/10^3*C47 -> 724.452 | P47: =I47*O2_kg_por_H2_kg*TDT*Fator_Operacional/10^3*C47 -> 5795.616 | Q47: =-M47*I47*TDT*Fator_Operacional/10^3*C47 -> -12264 | R47: =-J47*I47*TDT*Fator_Operacional/10^3*C47 -> -37668 | S47: Selecione um eletrolisador na lista, bem como a quantidade desejada.
C48: 0 | D48: Outro | E48: A | F48: B | G48: 30 | H48: 2500 | I48: 41.35 | J48: 50 | M48: 10 | N48: =Custo.Uni_ELET*H48*C48 -> 0 | O48: =I48*TDT*Fator_Operacional/10^3*C48 -> 0 | P48: =I48*O2_kg_por_H2_kg*TDT*Fator_Operacional/10^3*C48 -> 0 | Q48: =-M48*I48*TDT*Fator_Operacional/10^3*C48 -> 0 | R48: =-J48*I48*TDT*Fator_Operacional/10^3*C48 -> 0 | S48: Este espaço permite ao usuário considerar um eletrolisador ausente na lista sugerida. Os espaços com fundo cinza destacam valores introduzidos na simulação, portanto devem ser preenchidos
G49: Sumário do sistema de eletrólise | H49: =SUMPRODUCT(H46:H48,C46:C48) -> 5000 | I49: =SUMPRODUCT(I46:I48,C46:C48) -> 82.7 | J49: =(I46*J46+I48*J48)/SUM(I46:I48) -> 27.9171705 | K49: =L49/Densidade_H2 -> 0.1974876 | L49: =I49/H49 -> 0.01654 | M49: =SUMPRODUCT(M46:M48,O46:O48)/SUM(O46:O48) -> 16.9286578 | N49: =SUM(N46:N48) -> 36305000 | O49: =SUM(O46:O48) -> 724.452 | P49: =SUM(P46:P48) -> 5795.616 | Q49: =SUM(Q46:Q48) -> -12264 | R49: =SUM(R46:R48) -> -37668 | S49: Os resultados neste sumário serão utilizados na simulação
F50: Alerta de alinhamento com a concepção inicial: | G50: A potência instalada é | H50: =TRUNC(H49/F24/1000-1,1) -> 1.2 | I50: =IF(H50>0,"maior que a sugestão do diagnóstico","menor que a sugestão do diagnóstico") -> maior que a sugestão do diagnóstico
C52: 4.6 Custos de capital e operacionais do eletrolisador
E53: Orçamento de Investimento | F53: Valor | G53: Moeda | H53: % do Eletrolisador | J53: Custos de Operação | L53: Valor | M53: Moeda | N53: % do Eletrolisador | O53: Periodicidade
E54: Eletrolisadores | F54: =-N49 -> -36305000 | G54: =Moeda -> BRL | H54: (-) | K54: Operação e Manutenção | L54: =N54*$F$54 -> -907625 | M54: =Moeda -> BRL | N54: 0.025 | O54: a.a.
E55: Armazenamento de H2 | F55: =H55*$F$54 -> 0 | G55: BRL | H55: 0 | K55: Outros custos | L55: =N55*$F$54 -> -907625 | M55: =Moeda -> BRL | N55: 0.025 | O55: a.a.
E56: Armazenamento de O2 | F56: 0 | G56: BRL | H56: 0 | K56: Demais custos | M56: =Moeda -> BRL | N56: (-) | O56: a.a.
E57: Importação equipamento | F57: -5445750 | G57: BRL | H57: 0.15 | K57: Troca da membrana | L57: =N57*$F$54 -> -7261000 | M57: =Moeda -> BRL | N57: 0.2 | O57: 75000 | P57: horas
E58: Preparo do local: mão de obra | F58: -3267450 | G58: BRL | H58: 0.09
E59: Preparo do local: material | F59: -3630500 | G59: BRL | H59: 0.1
E60: Engenharia e licenciamento | F60: -363050 | G60: BRL | H60: 0.01 | J60: Valores Residuais
E61: Outras contingências | F61: -5445750 | G61: BRL | H61: 0.15 | K61: Valor residual no último ano | L61: =-F54*N61 -> 10757037.04 | M61: =Moeda -> BRL | N61: =(27-21+posterga)/27 -> 0.2962962963
E62: Demais custos | F62: 0 | G62: BRL | H62: (-)
E64: Investimento no sistema de eletrólise | F64: =SUM(F54:F63) -> -54457500 | G64: BRL | H64: Cálculo do investimento do eletrolisador
E65: CAPEX do eletrolisador | F65: =F64 -> -54457500 | G65: BRL | H65: CAPEX a ser utilizado no fluxo de caixa. Neste campo pode ser inserido o valor do CAPEX que se deseja considerar na simulação
C76: Análise de sensibilidade - Esta seção deve ficar oculta para fins de se concentrar os resultados na Aba adequada. A análise de sensibilidade está construída nesta parte, pois as variáveis e a Tabela de Dados (ferramenta utilizada do Excel) devem estar contidas em uma mesma Aba
E79: VPL | F79: =E28 -> Custo do Gás Natural | G79: =G28 -> BRL/m3
E80: ='(6) Resultados'!E9 -> -38477.21806 | F80: ='(7) Análise de sensibilidade'!H16 -> 0 | G80: ='(7) Análise de sensibilidade'!I16 -> 0.8 | H80: ='(7) Análise de sensibilidade'!J16 -> 1.6 | I80: ='(7) Análise de sensibilidade'!K16 -> 2.4 | J80: ='(7) Análise de sensibilidade'!L16 -> 3.2 | K80: ='(7) Análise de sensibilidade'!M16 -> 4 | L80: ='(7) Análise de sensibilidade'!N16 -> 4.8 | M80: ='(7) Análise de sensibilidade'!O16 -> 5.6 | N80: ='(7) Análise de sensibilidade'!P16 -> 6.4 | O80: ='(7) Análise de sensibilidade'!Q16 -> 7.2
D81: =E31 -> Custo da energia elétrica | E81: ='(7) Análise de sensibilidade'!G17 -> 0 | F81: -78193.60314 | G81: -57243.75852 | H81: -36293.9139 | I81: -15344.06928 | J81: 5605.775336 | K81: 26555.61996 | L81: 47505.46457 | M81: 68455.30919 | N81: 89405.15381 | O81: 110354.9984
D82: =G31 -> BRL/MWh | E82: ='(7) Análise de sensibilidade'!G18 -> 30 | F82: -91200.17075 | G82: -70250.32613 | H82: -49300.48151 | I82: -28350.63689 | J82: -7400.792268 | K82: 13549.05235 | L82: 34498.89697 | M82: 55448.74159 | N82: 76398.58621 | O82: 97348.43083
E83: ='(7) Análise de sensibilidade'!G19 -> 60 | F83: -104206.7383 | G83: -83256.89373 | H83: -62307.04911 | I83: -41357.20449 | J83: -20407.35987 | K83: 542.4847475 | L83: 21492.32937 | M83: 42442.17399 | N83: 63392.01861 | O83: 84341.86323
E84: ='(7) Análise de sensibilidade'!G20 -> 90 | F84: -117213.306 | G84: -96263.46133 | H84: -75313.61671 | I84: -54363.7721 | J84: -33413.92748 | K84: -12464.08286 | L84: 8485.761763 | M84: 29435.60638 | N84: 50385.451 | O84: 71335.29562
E85: ='(7) Análise de sensibilidade'!G21 -> 120 | F85: -130219.8736 | G85: -109270.0289 | H85: -88320.18432 | I85: -67370.3397 | J85: -46420.49508 | K85: -25470.65046 | L85: -4520.805841 | M85: 16429.03878 | N85: 37378.8834 | O85: 58328.72802
E86: ='(7) Análise de sensibilidade'!G22 -> 150 | F86: -143226.4412 | G86: -122276.5965 | H86: -101326.7519 | I86: -80376.9073 | J86: -59427.06268 | K86: -38477.21806 | L86: -17527.37344 | M86: 3422.471175 | N86: 24372.31579 | O86: 45322.16041
E87: ='(7) Análise de sensibilidade'!G23 -> 180 | F87: -156233.0088 | G87: -135283.1641 | H87: -114333.3195 | I87: -93383.47491 | J87: -72433.63029 | K87: -51483.78567 | L87: -30533.94105 | M87: -9584.096429 | N87: 11365.74819 | O87: 32315.59281
E88: ='(7) Análise de sensibilidade'!G24 -> 210 | F88: -169239.5764 | G88: -148289.7317 | H88: -127339.8871 | I88: -106390.0425 | J88: -85440.19789 | K88: -64490.35327 | L88: -43540.50865 | M88: -22590.66403 | N88: -1640.819414 | O88: 19309.02521
E89: ='(7) Análise de sensibilidade'!G25 -> 240 | F89: -182246.144 | G89: -161296.2994 | H89: -140346.4547 | I89: -119396.6101 | J89: -98446.7655 | K89: -77496.92088 | L89: -56547.07626 | M89: -35597.23164 | N89: -14647.38702 | O89: 6302.457602
E90: ='(7) Análise de sensibilidade'!G26 -> 270 | F90: -195252.7116 | G90: -174302.867 | H90: -153353.0223 | I90: -132403.1777 | J90: -111453.3331 | K90: -90503.48848 | L90: -69553.64386 | M90: -48603.79924 | N90: -27653.95462 | O90: -6704.110002
E92: VPL | F92: =E28 -> Custo do Gás Natural | G92: =G28 -> BRL/m3
E93: ='(6) Resultados'!E9 -> -38477.21806 | F93: ='(7) Análise de sensibilidade'!H31 -> 0 | G93: ='(7) Análise de sensibilidade'!I31 -> 0.8 | H93: ='(7) Análise de sensibilidade'!J31 -> 1.6 | I93: ='(7) Análise de sensibilidade'!K31 -> 2.4 | J93: ='(7) Análise de sensibilidade'!L31 -> 3.2 | K93: ='(7) Análise de sensibilidade'!M31 -> 4 | L93: ='(7) Análise de sensibilidade'!N31 -> 4.8 | M93: ='(7) Análise de sensibilidade'!O31 -> 5.6 | N93: ='(7) Análise de sensibilidade'!P31 -> 6.4 | O93: ='(7) Análise de sensibilidade'!Q31 -> 7.2
D94: =E41 -> Custo unitário do eletrolisador por unidade de potência instalada | E94: ='(7) Análise de sensibilidade'!G32 -> 0 | F94: -65117.53195 | G94: -44167.68733 | H94: -23217.84271 | I94: -2267.99809 | J94: 18681.84653 | K94: 39631.69115 | L94: 60581.53577 | M94: 81531.38039 | N94: 102481.225 | O94: 123431.0696
D95: =G41 -> BRL/kW | E95: ='(7) Análise de sensibilidade'!G33 -> 1452.2 | F95: -80739.31379 | G95: -59789.46917 | H95: -38839.62455 | I95: -17889.77993 | J95: 3060.064687 | K95: 24009.90931 | L95: 44959.75393 | M95: 65909.59855 | N95: 86859.44316 | O95: 107809.2878
E96: ='(7) Análise de sensibilidade'!G34 -> 2904.4 | F96: -96361.09563 | G96: -75411.25101 | H96: -54461.40639 | I96: -33511.56178 | J96: -12561.71716 | K96: 8388.127464 | L96: 29337.97208 | M96: 50287.8167 | N96: 71237.66132 | O96: 92187.50594
E97: ='(7) Análise de sensibilidade'!G35 -> 4356.6 | F97: -111982.8775 | G97: -91033.03286 | H97: -70083.18824 | I97: -49133.34362 | J97: -28183.499 | K97: -7233.654379 | L97: 13716.19024 | M97: 34666.03486 | N97: 55615.87948 | O97: 76565.7241
E98: ='(7) Análise de sensibilidade'!G36 -> 5808.8 | F98: -127604.6593 | G98: -106654.8147 | H98: -85704.97008 | I98: -64755.12546 | J98: -43805.28084 | K98: -22855.43622 | L98: -1905.591602 | M98: 19044.25302 | N98: 39994.09764 | O98: 60943.94226
E99: ='(7) Análise de sensibilidade'!G37 -> 7261 | F99: -143226.4412 | G99: -122276.5965 | H99: -101326.7519 | I99: -80376.9073 | J99: -59427.06268 | K99: -38477.21806 | L99: -17527.37344 | M99: 3422.471175 | N99: 24372.31579 | O99: 45322.16041
E100: ='(7) Análise de sensibilidade'!G38 -> 8713.2 | F100: -158848.223 | G100: -137898.3784 | H100: -116948.5338 | I100: -95998.68915 | J100: -75048.84453 | K100: -54098.99991 | L100: -33149.15529 | M100: -12199.31067 | N100: 8750.533951 | O100: 29700.37857
E101: ='(7) Análise de sensibilidade'!G39 -> 10165.4 | F101: -174470.0048 | G101: -153520.1602 | H101: -132570.3156 | I101: -111620.471 | J101: -90670.62637 | K101: -69720.78175 | L101: -48770.93713 | M101: -27821.09251 | N101: -6871.247891 | O101: 14078.59673
E102: ='(7) Análise de sensibilidade'!G40 -> 11617.6 | F102: -190091.7867 | G102: -169141.9421 | H102: -148192.0975 | I102: -127242.2528 | J102: -106292.4082 | K102: -85342.56359 | L102: -64392.71897 | M102: -43442.87435 | N102: -22493.02973 | O102: -1543.185115
E103: ='(7) Análise de sensibilidade'!G41 -> 13069.8 | F103: -205713.5685 | G103: -184763.7239 | H103: -163813.8793 | I103: -142864.0347 | J103: -121914.1901 | K103: -100964.3454 | L103: -80014.50082 | M103: -59064.6562 | N103: -38114.81158 | O103: -17164.96696
E105: VPL | F105: =E28 -> Custo do Gás Natural | G105: =G28 -> BRL/m3
E106: ='(6) Resultados'!E9 -> -38477.21806 | F106: ='(7) Análise de sensibilidade'!H46 -> 0 | G106: ='(7) Análise de sensibilidade'!I46 -> 0.8 | H106: ='(7) Análise de sensibilidade'!J46 -> 1.6 | I106: ='(7) Análise de sensibilidade'!K46 -> 2.4 | J106: ='(7) Análise de sensibilidade'!L46 -> 3.2 | K106: ='(7) Análise de sensibilidade'!M46 -> 4 | L106: ='(7) Análise de sensibilidade'!N46 -> 4.8 | M106: ='(7) Análise de sensibilidade'!O46 -> 5.6 | N106: ='(7) Análise de sensibilidade'!P46 -> 6.4 | O106: ='(7) Análise de sensibilidade'!Q46 -> 7.2
D107: =E38 -> Taxa de Desconto | E107: ='(7) Análise de sensibilidade'!G47 -> 0 | F107: -200205.8226 | G107: -165703.3143 | H107: -131200.8061 | I107: -96698.29788 | J107: -62195.78965 | K107: -27693.28142 | L107: 6809.226803 | M107: 41311.73503 | N107: 75814.24326 | O107: 110316.7515
D108: =G38 -> a.a. | E108: ='(7) Análise de sensibilidade'!G48 -> 0.01 | F108: -185569.4408 | G108: -154584.2206 | H108: -123599.0003 | I108: -92613.78005 | J108: -61628.55979 | K108: -30643.33953 | L108: 341.8807277 | M108: 31327.10099 | N108: 62312.32125 | O108: 93297.54151
E109: ='(7) Análise de sensibilidade'!G49 -> 0.02 | F109: -172810.3321 | G109: -144872.4299 | H109: -116934.5277 | I109: -88996.62548 | J109: -61058.72328 | K109: -33120.82108 | L109: -5182.918882 | M109: 22754.98332 | N109: 50692.88552 | O109: 78630.78771
E110: ='(7) Análise de sensibilidade'!G50 -> 0.03 | F110: -161649.4393 | G110: -136361.405 | H110: -111073.3706 | I110: -85785.33626 | J110: -60497.3019 | K110: -35209.26754 | L110: -9921.233184 | M110: 15366.80117 | N110: 40654.83553 | O110: 65942.86989
E111: ='(7) Análise de sensibilidade'!G51 -> 0.04 | F111: -151853.3871 | G111: -128877.9871 | H111: -105902.587 | I111: -82927.18697 | J111: -59951.78692 | K111: -36976.38687 | L111: -14000.98682 | M111: 8974.413226 | N111: 31949.81328 | O111: 54925.21332
E112: ='(7) Análise de sensibilidade'!G52 -> 0.05 | F112: -143226.4412 | G112: -122276.5965 | H112: -101326.7519 | I112: -80376.9073 | J112: -59427.06268 | K112: -38477.21806 | L112: -17527.37344 | M112: 3422.471175 | N112: 24372.31579 | O112: 45322.16041
E113: ='(7) Análise de sensibilidade'!G53 -> 0.06 | F113: -135603.9688 | G113: -116434.502 | H113: -97265.03509 | I113: -78095.56822 | J113: -58926.10135 | K113: -39756.63448 | L113: -20587.1676 | M113: -1417.700732 | N113: 17751.76614 | O113: 36921.23301
E114: ='(7) Análise de sensibilidade'!G54 -> 0.07 | F114: -128847.106 | G114: -111247.9507 | H114: -93648.79541 | I114: -76049.64014 | J114: -58450.48487 | K114: -40851.3296 | L114: -23252.17433 | M114: -5653.019065 | N114: 11946.1362 | O114: 29545.29147
E115: ='(7) Análise de sensibilidade'!G55 -> 0.08 | F115: -122838.3958 | G115: -106628.996 | H115: -90419.59614 | I115: -74210.19631 | J115: -58000.79648 | K115: -41791.39665 | L115: -25581.99682 | M115: -9372.596995 | N115: 6836.802835 | O115: 23046.20266
E116: ='(7) Análise de sensibilidade'!G56 -> 0.09 | F116: -117478.2137 | G116: -102502.8887 | H116: -87527.5636 | I116: -72552.23852 | J116: -57576.91345 | K116: -42601.58838 | L116: -27626.26331 | M116: -12650.93824 | N116: 2324.386836 | O116: 17299.71191

Sheet (5) Simulação e Fluxo de Caixa
B2: 5. Simulação da produção de H2, fluxos físicos e fluxo de Caixa
C5: 5.1 Fluxos físicos | G5: 0 | H5: 1 | I5: 2 | J5: 3 | K5: 4 | L5: 5 | M5: 6 | N5: 7 | O5: 8 | P5: 9 | Q5: 10 | R5: 11 | S5: 12 | T5: 13 | U5: 14 | V5: 15 | W5: 16 | X5: 17 | Y5: 18 | Z5: 19 | AA5: 20 | AC5: Acumulado no tempo de vida | AH5: Descrição do campo
C7: Rastreamento da substituição da membrana na tencologia PEM | AH7: =C7 -> Rastreamento da substituição da membrana na tencologia PEM
C8: Horas de uso do eletrolisador | E8: ='(4) Entrada de dados'!G36 -> h | G8: =IF(G5>=posterga,Fator_Operacional*TDT,0) -> 0 | H8: 0 | I8: 8760 | J8: 8760 | K8: 8760 | L8: 8760 | M8: 8760 | N8: 8760 | O8: 8760 | P8: 8760 | Q8: 8760 | R8: 8760 | S8: 8760 | T8: 8760 | U8: 8760 | V8: 8760 | W8: 8760 | X8: 8760 | Y8: 8760 | Z8: 8760 | AA8: 8760 | AC8: =SUM(G8:AA8) -> 166440 | AG8: =E8 -> h | AH8: =C8 -> Horas de uso do eletrolisador
C9: Horas acumuladas | E9: ='(4) Entrada de dados'!G36 -> h | G9: =G8+F9 -> 0 | H9: =H8+G9 -> 0 | I9: =I8+H9 -> 8760 | J9: =IF(I10,J8,J8+I9) -> 17520 | K9: 26280 | L9: 35040 | M9: 43800 | N9: 52560 | O9: 61320 | P9: 70080 | Q9: 78840 | R9: 8760 | S9: 17520 | T9: 26280 | U9: 35040 | V9: 43800 | W9: 52560 | X9: 61320 | Y9: 70080 | Z9: 78840 | AA9: 8760 | AC9: =SUM(G9:AA9) -> 797160 | AG9: =E9 -> h | AH9: =C9 -> Horas acumuladas
C10: Troca membrana | G10: =IF(G9>=duracao_membrana,TRUE,FALSE) -> FALSE | H10: FALSE | I10: FALSE | J10: FALSE | K10: FALSE | L10: FALSE | M10: FALSE | N10: FALSE | O10: FALSE | P10: FALSE | Q10: TRUE | R10: FALSE | S10: FALSE | T10: FALSE | U10: FALSE | V10: FALSE | W10: FALSE | X10: FALSE | Y10: FALSE | Z10: TRUE | AA10: FALSE | AC10: n/a | AG10: =E10 ->  | AH10: =C10 -> Troca membrana
C13: Produção (fluxos físicos relacionados a Receitas) | AH13: =C13 -> Produção (fluxos físicos relacionados a Receitas)
C14: Produção de Hidrogênio | E14: ton | G14: =IF(G5=posterga,Prod_H2,0) -> 0 | H14: =IF(H5=posterga,Prod_H2,0) -> 0 | I14: =IF(OR(I5=posterga,H10),Prod_H2,H14-(Degradacao_aa_EL*H14)) -> 724.452 | J14: 717.20748 | K14: 710.0354052 | L14: 702.9350511 | M14: 695.9057006 | N14: 688.9466436 | O14: 682.0571772 | P14: 675.2366054 | Q14: 668.4842394 | R14: 724.452 | S14: 717.20748 | T14: 710.0354052 | U14: 702.9350511 | V14: 695.9057006 | W14: 688.9466436 | X14: 682.0571772 | Y14: 675.2366054 | Z14: 668.4842394 | AA14: 724.452 | AC14: =SUM(G14:AA14) -> 13254.97261 | AG14: =E14 -> ton | AH14: =C14 -> Produção de Hidrogênio
C15: Produção de Oxigênio | E15: milhares m3 | G15: =IF(G5=posterga,Prod_O2*Volume.especifico_O2,0) -> 0 | H15: =IF(H5=posterga,Prod_O2*Volume.especifico_O2,0) -> 0 | I15: =IF(OR(I5=posterga,H10),Prod_O2*Volume.especifico_O2,H15-(Degradacao_aa_EL*H15)) -> 4352.73507 | J15: 4309.207719 | K15: 4266.115642 | L15: 4223.454485 | M15: 4181.219941 | N15: 4139.407741 | O15: 4098.013664 | P15: 4057.033527 | Q15: 4016.463192 | R15: 4352.73507 | S15: 4309.207719 | T15: 4266.115642 | U15: 4223.454485 | V15: 4181.219941 | W15: 4139.407741 | X15: 4098.013664 | Y15: 4057.033527 | Z15: 4016.463192 | AA15: 4352.73507 | AC15: =SUM(G15:AA15) -> 79640.03703 | AG15: =E15 -> milhares m3 | AH15: =C15 -> Produção de Oxigênio
C18: Cálculo de insumos evitados (fluxos físicos relacionados a Receitas) | AH18: =C18 -> Cálculo de insumos evitados (fluxos físicos relacionados a Receitas)
C19: ="Consumo corrente de "&'(4) Entrada de dados'!F14 -> Consumo corrente de Gás Natural | E19: =Unidade_fonte_substituida -> m3 | G19: =IF(G5>=posterga,-Consumo_FonteFossil,0) -> 0 | H19: 0 | I19: -20000000 | J19: -20000000 | K19: -20000000 | L19: -20000000 | M19: -20000000 | N19: -20000000 | O19: -20000000 | P19: -20000000 | Q19: -20000000 | R19: -20000000 | S19: -20000000 | T19: -20000000 | U19: -20000000 | V19: -20000000 | W19: -20000000 | X19: -20000000 | Y19: -20000000 | Z19: -20000000 | AA19: -20000000 | AC19: =SUM(G19:AA19) -> -380000000 | AG19: =E19 -> m3 | AH19: =C19 -> Consumo corrente de Gás Natural
C20: ="Consumo corrente de "&'(4) Entrada de dados'!F14 -> Consumo corrente de Gás Natural | E20: TJ | G20: =PCI_fonte_substituida*G19/10^6 -> 0 | H20: 0 | I20: -736.8768 | J20: -736.8768 | K20: -736.8768 | L20: -736.8768 | M20: -736.8768 | N20: -736.8768 | O20: -736.8768 | P20: -736.8768 | Q20: -736.8768 | R20: -736.8768 | S20: -736.8768 | T20: -736.8768 | U20: -736.8768 | V20: -736.8768 | W20: -736.8768 | X20: -736.8768 | Y20: -736.8768 | Z20: -736.8768 | AA20: -736.8768 | AC20: =SUM(G20:AA20) -> -14000.6592 | AG20: =E20 -> TJ | AH20: =C20 -> Consumo corrente de Gás Natural
C21: ="Consumo de "&'(4) Entrada de dados'!F14&" sendo substituído por H2" -> Consumo de Gás Natural sendo substituído por H2 | E21: TJ | G21: =G14*PCI_H2/10^3 -> 0 | H21: 0 | I21: 86.84730576 | J21: 85.9788327 | K21: 85.11904438 | L21: 84.26785393 | M21: 83.42517539 | N21: 82.59092364 | O21: 81.7650144 | P21: 80.94736426 | Q21: 80.13789062 | R21: 86.84730576 | S21: 85.9788327 | T21: 85.11904438 | U21: 84.26785393 | V21: 83.42517539 | W21: 82.59092364 | X21: 81.7650144 | Y21: 80.94736426 | Z21: 80.13789062 | AA21: 86.84730576 | AC21: =SUM(G21:AA21) -> 1589.006116 | AG21: =E21 -> TJ | AH21: Energia que a produção total de H2 proporciona em substituição ao gás natural
C22: ="Consumo de "&'(4) Entrada de dados'!F14&" sendo substituído por H2" -> Consumo de Gás Natural sendo substituído por H2 | E22: =Unidade_fonte_substituida -> m3 | G22: =G21/(PCI_fonte_substituida/10^6) -> 0 | H22: 0 | I22: 2357173.024 | J22: 2333601.294 | K22: 2310265.281 | L22: 2287162.628 | M22: 2264291.002 | N22: 2241648.092 | O22: 2219231.611 | P22: 2197039.295 | Q22: 2175068.902 | R22: 2357173.024 | S22: 2333601.294 | T22: 2310265.281 | U22: 2287162.628 | V22: 2264291.002 | W22: 2241648.092 | X22: 2219231.611 | Y22: 2197039.295 | Z22: 2175068.902 | AA22: 2357173.024 | AC22: =SUM(G22:AA22) -> 43128135.28 | AG22: =E22 -> m3 | AH22: Consumo de Gás Natural sendo substituído por H2
C23: ="Percentual de substituição de "&'(4) Entrada de dados'!F14&" por H2 (base energética)" -> Percentual de substituição de Gás Natural por H2 (base energética) | E23: % | G23: =IFERROR(G22/ABS(G19),"") ->  | H23: =IFERROR(H22/ABS(H19),"") ->  | I23: =IFERROR(I22/ABS(I19),"") -> 0.1178586512 | J23: =IFERROR(J22/ABS(J19),"") -> 0.1166800647 | K23: 0.1155132641 | L23: 0.1143581314 | M23: 0.1132145501 | N23: 0.1120824046 | O23: 0.1109615806 | P23: 0.1098519647 | Q23: 0.1087534451 | R23: 0.1178586512 | S23: 0.1166800647 | T23: 0.1155132641 | U23: 0.1143581314 | V23: 0.1132145501 | W23: 0.1120824046 | X23: 0.1109615806 | Y23: 0.1098519647 | Z23: 0.1087534451 | AA23: 0.1178586512 | AC23: =IFERROR(AC22/ABS(AC19),"") -> 0.1134950929 | AG23: % | AH23: ="Esse resultado demonstra a perfomance do projeto frente ao objetivo de se substituir "&'(4) Entrada de dados'!F20*100&"% (em base energética) da fonte fóssil por H2" -> Esse resultado demonstra a perfomance do projeto frente ao objetivo de se substituir 5% (em base energética) da fonte fóssil por H2
C24: Consumo efetivo de Gás Natural na aplicação final utilizando H2 | E24: =Unidade_fonte_substituida -> m3 | G24: =G19+G22 -> 0 | H24: =H19+H22 -> 0 | I24: =I19+I22 -> -17642826.98 | J24: -17666398.71 | K24: -17689734.72 | L24: =L19+L22 -> -17712837.37 | M24: -17735709 | N24: -17758351.91 | O24: -17780768.39 | P24: -17802960.71 | Q24: -17824931.1 | R24: -17642826.98 | S24: -17666398.71 | T24: -17689734.72 | U24: -17712837.37 | V24: -17735709 | W24: -17758351.91 | X24: -17780768.39 | Y24: -17802960.71 | Z24: -17824931.1 | AA24: -17642826.98 | AC24: =SUM(G24:AA24) -> -336871864.7 | AG24: m3 | AH24: Consumo efetivo de Gás Natural na aplicação final utilizando H2
C25: Consumo efetivo de Gás Natural na aplicação final utilizando H2 | E25: TJ | G25: =G24*PCI_fonte_substituida/10^6 -> 0 | H25: 0 | I25: -650.0294942 | J25: -650.8979673 | K25: -651.7577556 | L25: =L24*PCI_fonte_substituida/10^6 -> -652.6089461 | M25: -653.4516246 | N25: -654.2858764 | O25: -655.1117856 | P25: -655.9294357 | Q25: -656.7389094 | R25: -650.0294942 | S25: -650.8979673 | T25: -651.7577556 | U25: -652.6089461 | V25: -653.4516246 | W25: -654.2858764 | X25: -655.1117856 | Y25: -655.9294357 | Z25: -656.7389094 | AA25: -650.0294942 | AC25: =SUM(G25:AA25) -> -12411.65308 | AG25: TJ | AH25: Consumo efetivo de Gás Natural na aplicação final utilizando H2
C28: Mitigação de emissões (fluxos físicios relacionados a Receitas) | AH28: =C28 -> Mitigação de emissões (fluxos físicios relacionados a Receitas)
C29: Emissão de CO2eq evitada no processo utilizando H2 | E29: ton | G29: =(-G20+G25)*fator_emissao_fonte_substituida -> 0 | H29: 0 | I29: 4876.649913 | J29: 4827.883414 | K29: 4779.60458 | L29: 4731.808534 | M29: 4684.490449 | N29: 4637.645544 | O29: 4591.269089 | P29: 4545.356398 | Q29: 4499.902834 | R29: 4876.649913 | S29: 4827.883414 | T29: 4779.60458 | U29: 4731.808534 | V29: 4684.490449 | W29: 4637.645544 | X29: 4591.269089 | Y29: 4545.356398 | Z29: 4499.902834 | AA29: 4876.649913 | AC29: =SUM(G29:AA29) -> 89225.87142 | AG29: =E29 -> ton | AH29: =C29 -> Emissão de CO2eq evitada no processo utilizando H2
C32: Insumos utilizados (fluxos físicos relacionados a Custos) | AH32: =C32 -> Insumos utilizados (fluxos físicos relacionados a Custos)
C33: Consumo de energia elétrica para a eletrólise | E33: MWh | G33: =IF(G5>=posterga,Consumo_de_energia_eletrica__MWh_ano,0) -> 0 | H33: 0 | I33: -37668 | J33: -37668 | K33: -37668 | L33: -37668 | M33: -37668 | N33: -37668 | O33: -37668 | P33: -37668 | Q33: -37668 | R33: -37668 | S33: -37668 | T33: -37668 | U33: -37668 | V33: -37668 | W33: -37668 | X33: -37668 | Y33: -37668 | Z33: -37668 | AA33: -37668 | AC33: =SUM(G33:AA33) -> -715692 | AG33: =E33 -> MWh | AH33: =C33 -> Consumo de energia elétrica para a eletrólise
C34: Consumo de água para a eletrólise | E34: m3 | G34: =IF(G5>=posterga,Cons_Agua,0) -> 0 | H34: 0 | I34: -12264 | J34: -12264 | K34: -12264 | L34: -12264 | M34: -12264 | N34: -12264 | O34: -12264 | P34: -12264 | Q34: -12264 | R34: -12264 | S34: -12264 | T34: -12264 | U34: -12264 | V34: -12264 | W34: -12264 | X34: -12264 | Y34: -12264 | Z34: -12264 | AA34: -12264 | AC34: =SUM(G34:AA34) -> -233016 | AG34: =E34 -> m3 | AH34: =C34 -> Consumo de água para a eletrólise
C39: 5.2 Fluxo de caixa do projeto de substituição | G39: 0 | H39: 1 | I39: 2 | J39: 3 | K39: 4 | L39: 5 | M39: 6 | N39: 7 | O39: 8 | P39: 9 | Q39: 10 | R39: 11 | S39: 12 | T39: 13 | U39: 14 | V39: 15 | W39: 16 | X39: 17 | Y39: 18 | Z39: 19 | AA39: 20 | AC39: Acumulado no tempo de vida | AH39: Descrição do campo
C41: ="Receitas (milhares de "&Moeda&" )" -> Receitas (milhares de BRL ) | AH41: =C41 -> Receitas (milhares de BRL )
C42: ="Consumo evitado de "&'(4) Entrada de dados'!F14 -> Consumo evitado de Gás Natural | G42: =(G22)*custo_fonte_substituida/10^3 -> 0 | H42: 0 | I42: 9428.692097 | J42: 9334.405176 | K42: 9241.061125 | L42: 9148.650513 | M42: 9057.164008 | N42: 8966.592368 | O42: 8876.926444 | P42: 8788.15718 | Q42: 8700.275608 | R42: 9428.692097 | S42: 9334.405176 | T42: 9241.061125 | U42: 9148.650513 | V42: 9057.164008 | W42: 8966.592368 | X42: 8876.926444 | Y42: 8788.15718 | Z42: 8700.275608 | AA42: 9428.692097 | AC42: =SUM(G42:AB42) -> 172512.5411 | AH42: Consumo evitado de Gás Natural
C43: Oxigênio | G43: =G15*preco_do_oxigenio_por_m3 -> 0 | H43: 0 | I43: 0 | J43: 0 | K43: 0 | L43: 0 | M43: 0 | N43: 0 | O43: 0 | P43: 0 | Q43: 0 | R43: 0 | S43: 0 | T43: 0 | U43: 0 | V43: 0 | W43: 0 | X43: 0 | Y43: 0 | Z43: 0 | AA43: 0 | AC43: =SUM(G43:AB43) -> 0 | AH43: Oxigênio
C44: Créditos de Carbono | G44: =preco_credito_carbono_eq*(G29)/1000 -> 0 | H44: 0 | I44: 0 | J44: 0 | K44: 0 | L44: 0 | M44: 0 | N44: 0 | O44: 0 | P44: 0 | Q44: 0 | R44: 0 | S44: 0 | T44: 0 | U44: 0 | V44: 0 | W44: 0 | X44: 0 | Y44: 0 | Z44: 0 | AA44: 0 | AC44: =SUM(G44:AB44) -> 0 | AH44: Créditos de Carbono
C45: Valor residual do eletrolisador | AA45: =valor_residual_ultimo_ano_EL/1000 -> 10757.03704 | AC45: =SUM(G45:AB45) -> 10757.03704 | AH45: Valor residual do eletrolisador
C47: ="Receita anual total (milhares de "&Moeda&" )" -> Receita anual total (milhares de BRL ) | G47: =SUM(G42:G46) -> 0 | H47: 0 | I47: 9428.692097 | J47: 9334.405176 | K47: 9241.061125 | L47: 9148.650513 | M47: 9057.164008 | N47: 8966.592368 | O47: 8876.926444 | P47: 8788.15718 | Q47: 8700.275608 | R47: 9428.692097 | S47: 9334.405176 | T47: 9241.061125 | U47: 9148.650513 | V47: 9057.164008 | W47: 8966.592368 | X47: 8876.926444 | Y47: 8788.15718 | Z47: 8700.275608 | AA47: 20185.72913 | AC47: =SUM(AC42:AC46) -> 183269.5782 | AH47: =C47 -> Receita anual total (milhares de BRL )
C49: ="Custos (milhares de "&Moeda&" )" -> Custos (milhares de BRL ) | AH49: =C49 -> Custos (milhares de BRL )
C50: Energia elétrica adquirida para uso no EL | G50: =(G33)*custo_da_energia_eletrica_por_MWh/1000 -> 0 | H50: 0 | I50: -5650.2 | J50: -5650.2 | K50: -5650.2 | L50: -5650.2 | M50: -5650.2 | N50: -5650.2 | O50: -5650.2 | P50: -5650.2 | Q50: -5650.2 | R50: -5650.2 | S50: -5650.2 | T50: -5650.2 | U50: -5650.2 | V50: -5650.2 | W50: -5650.2 | X50: -5650.2 | Y50: -5650.2 | Z50: -5650.2 | AA50: -5650.2 | AC50: =SUM(G50:AB50) -> -107353.8 | AH50: =C50 -> Energia elétrica adquirida para uso no EL
C51: Água EL | G51: =G34*custo_da_agua_por_m3/1000 -> 0 | H51: 0 | I51: -7.3584 | J51: -7.3584 | K51: -7.3584 | L51: -7.3584 | M51: -7.3584 | N51: -7.3584 | O51: -7.3584 | P51: -7.3584 | Q51: -7.3584 | R51: -7.3584 | S51: -7.3584 | T51: -7.3584 | U51: -7.3584 | V51: -7.3584 | W51: -7.3584 | X51: -7.3584 | Y51: -7.3584 | Z51: -7.3584 | AA51: -7.3584 | AC51: =SUM(G51:AB51) -> -139.8096 | AH51: =C51 -> Água EL
C52: Operação e Manutenção EL | G52: =IF(G5>=posterga,custos_OeM_EL/1000,0) -> 0 | H52: 0 | I52: -907.625 | J52: -907.625 | K52: -907.625 | L52: -907.625 | M52: -907.625 | N52: -907.625 | O52: -907.625 | P52: -907.625 | Q52: -907.625 | R52: -907.625 | S52: -907.625 | T52: -907.625 | U52: -907.625 | V52: -907.625 | W52: -907.625 | X52: -907.625 | Y52: -907.625 | Z52: -907.625 | AA52: -907.625 | AC52: =SUM(G52:AB52) -> -17244.875 | AH52: Operação e Manutenção EL
C53: Troca de Membrana EL | G53: 0 | H53: 0 | I53: =IF(I10,custo_troca_membrana/1000,0) -> 0 | J53: 0 | K53: 0 | L53: 0 | M53: 0 | N53: 0 | O53: 0 | P53: 0 | Q53: -7261 | R53: 0 | S53: 0 | T53: 0 | U53: 0 | V53: 0 | W53: 0 | X53: 0 | Y53: 0 | Z53: -7261 | AA53: 0 | AC53: =SUM(G53:AB53) -> -14522 | AH53: Troca de Membrana EL
C54: Outros custos EL | G54: =IF(G5>=posterga,custos_outros_opex_EL/1000,0) -> 0 | H54: 0 | I54: -907.625 | J54: -907.625 | K54: -907.625 | L54: -907.625 | M54: -907.625 | N54: -907.625 | O54: -907.625 | P54: -907.625 | Q54: -907.625 | R54: -907.625 | S54: -907.625 | T54: -907.625 | U54: -907.625 | V54: -907.625 | W54: -907.625 | X54: -907.625 | Y54: -907.625 | Z54: -907.625 | AA54: -907.625 | AC54: =SUM(G54:AB54) -> -17244.875 | AH54: Outros custos EL
C55: Demais custos (TBD - to be defined) | AH55: Demais custos (TBD - to be defined)
C57: ="Custo anual total (milhares de "&Moeda&" )" -> Custo anual total (milhares de BRL ) | G57: =SUM(G50:G56) -> 0 | H57: =SUM(H50:H56) -> 0 | I57: -7472.8084 | J57: -7472.8084 | K57: -7472.8084 | L57: -7472.8084 | M57: -7472.8084 | N57: -7472.8084 | O57: -7472.8084 | P57: -7472.8084 | Q57: -14733.8084 | R57: -7472.8084 | S57: -7472.8084 | T57: -7472.8084 | U57: -7472.8084 | V57: -7472.8084 | W57: -7472.8084 | X57: -7472.8084 | Y57: -7472.8084 | Z57: -14733.8084 | AA57: -7472.8084 | AC57: =SUM(AC50:AC56) -> -156505.3596 | AH57: =C57 -> Custo anual total (milhares de BRL )
C59: ="Investimento (milhares de "&Moeda&" )" -> Investimento (milhares de BRL ) | AH59: ="Investimento (milhares de "&Moeda&" )" -> Investimento (milhares de BRL )
C60: Alocação do Investimento | E60: % | G60: 0.8 | H60: 0.2 | I60: 0 | J60: 0 | K60: 0 | AC60: =SUM(G60:AB60) -> 1 | AH60: =C60 -> Alocação do Investimento
C61: CAPEX relacionado ao eletrolisador | F61: TRUE | G61: =IF($F$61,CAPEX_EL/10^3*G60,0) -> -43566 | H61: =IF($F$61,CAPEX_EL/10^3*H60,0) -> -10891.5 | I61: =IF($F$61,CAPEX_EL/10^3*I60,0) -> 0 | J61: =IF($F$61,CAPEX_EL/10^3*J60,0) -> 0 | K61: =IF($F$61,CAPEX_EL/10^3*K60,0) -> 0 | AC61: =SUM(G61:AB61) -> -54457.5 | AH61: =C61 -> CAPEX relacionado ao eletrolisador
C64: ="Investimento total (milhares de "&Moeda&" )" -> Investimento total (milhares de BRL ) | E64: =Moeda -> BRL | G64: =SUM(G61) -> -43566 | H64: =SUM(H61) -> -10891.5 | I64: =SUM(I61) -> 0 | J64: =SUM(J61) -> 0 | K64: =SUM(K61) -> 0 | AC64: =SUM(G64:AB64) -> -54457.5 | AH64: =C64 -> Investimento total (milhares de BRL )
C66: ="Fluxo de Caixa (milhares de "&Moeda&" )" -> Fluxo de Caixa (milhares de BRL ) | AH66: ="Fluxo de Caixa (milhares de "&Moeda&" )" -> Fluxo de Caixa (milhares de BRL )
C67: Fluxos de Caixa | G67: =G47+G57+G64 -> -43566 | H67: -10891.5 | I67: 1955.883697 | J67: 1861.596776 | K67: 1768.252725 | L67: 1675.842113 | M67: 1584.355608 | N67: 1493.783968 | O67: 1404.118044 | P67: 1315.34878 | Q67: -6033.532792 | R67: 1955.883697 | S67: 1861.596776 | T67: 1768.252725 | U67: 1675.842113 | V67: 1584.355608 | W67: 1493.783968 | X67: 1404.118044 | Y67: 1315.34878 | Z67: -6033.532792 | AA67: 12712.92073 | AC67: =AC47+AC57+AC61 -> -27693.28142 | AH67: =C67 -> Fluxos de Caixa
C68: Fluxo de Caixa Acumulado | G68: =+G67 -> -43566 | H68: =+G68+H67 -> -54457.5 | I68: =+H68+I67 -> -52501.6163 | J68: =+I68+J67 -> -50640.01953 | K68: =+J68+K67 -> -48871.7668 | L68: -47195.92469 | M68: -45611.56908 | N68: =+M68+N67 -> -44117.78511 | O68: -42713.66707 | P68: -41398.31829 | Q68: -47431.85108 | R68: -45475.96738 | S68: -43614.37061 | T68: -41846.11788 | U68: -40170.27577 | V68: -38585.92016 | W68: -37092.13619 | X68: -35688.01815 | Y68: -34372.66937 | Z68: -40406.20216 | AA68: -27693.28142 | AF68: =AC67-AC68 -> -27693.28142 | AH68: =C68 -> Fluxo de Caixa Acumulado

Sheet (6) Resultados
B2: 6. Resultados | AF2: =SUM(AF3:AF1048576) -> 
C5: Relatório | E5: CAPEX eletrolisador | M5: Project Cash Flows | O5: =C87 -> Fluxos de Caixa | Q5: =C106 -> Fluxo de Caixa Acumulado
E7: Valor Presente Líquido (milhares BRL) | I7: Período de Payback Simples
E8: VPL do projeto de substituição | I8: Payback do projeto de substituição
E9: =G89 -> -38477.21806 | I9: =AC102 -> 20
AF15: =#REF!-AC87 -> 
E25: Taxa Interna de Retorno (% a.a.) | I25: Composição de valores no LCOH (BRL/kg)
E26: TIR do projeto de substituição | I26: Custo nivelado do H2 produzido
E27: =G90 -> -0.05145332457 | I27: Investimento eletrolisador | K27: =-NPV(TxDesconto,G83:AA83)/NPV(TxDesconto,'(5) Simulação e Fluxo de Caixa'!G14:AA14) -> 6.701820132
I28: O&M e membrana | K28: =-(NPV(TxDesconto,'(5) Simulação e Fluxo de Caixa'!G52:AA52)+NPV(TxDesconto,'(5) Simulação e Fluxo de Caixa'!G53:AA53)+NPV(TxDesconto,'(5) Simulação e Fluxo de Caixa'!G54:AA54))/NPV(TxDesconto,'(5) Simulação e Fluxo de Caixa'!G14:AA14) -> 3.506821713
I29: Água | K29: =-NPV(TxDesconto,'(5) Simulação e Fluxo de Caixa'!G51:AA51)/NPV(TxDesconto,'(5) Simulação e Fluxo de Caixa'!G14:AA14) -> 0.01052309051
I30: Eletricidade | K30: =-NPV(TxDesconto,'(5) Simulação e Fluxo de Caixa'!G50:AA50)/NPV(TxDesconto,'(5) Simulação e Fluxo de Caixa'!G14:AA14) -> 8.080230212
I31: LCOH (BRL/kg)
I32: =SUM(K27:K30) -> 18.29939515
I34: Receita de O2 | K34: =NPV(TxDesconto,G96:AA96)/NPV(TxDesconto,'(5) Simulação e Fluxo de Caixa'!G14:AA14) -> 0
I35: Receita de CO2 | K35: =NPV(TxDesconto,G95:AA95)/NPV(TxDesconto,'(5) Simulação e Fluxo de Caixa'!G14:AA14) -> 0
I36: Receita de valor residual | K36: =NPV(TxDesconto,G97:AA97)/NPV(TxDesconto,'(5) Simulação e Fluxo de Caixa'!G14:AA14) -> 0.5037298765
I37: LCOH final(BRL/kg)
I38: =I32-K34-K35-K36 -> 17.79566527
E40: =IFERROR(IF(E27>0,"","Projeto inviável em qualquer cenário"),"Erro no cálculo da TIR - Projeto inviável") -> Projeto inviável em qualquer cenário
E43: Emissões Evitadas (tonCO2eq/ano) | I43: ="Custo de competitividade da fonte fóssil ("&Moeda&"/"&Unidade_fonte_substituida&")" -> Custo de competitividade da fonte fóssil (BRL/m3)
E44: Média anual das emissões evitadas | I44: Preço da fonte fóssil, abaixo do qual o H2 é promissor
E45: =IFERROR(AVERAGEIF('(5) Simulação e Fluxo de Caixa'!F29:AA29,">0",'(5) Simulação e Fluxo de Caixa'!F29:AA29),0)+IFERROR(AVERAGEIF('(5) Simulação e Fluxo de Caixa'!#REF!,">0",'(5) Simulação e Fluxo de Caixa'!#REF!),0) -> 4696.098496 | I45: =G100 -> 5.469308007
C62: Fluxo de caixa previsto | G62: 0 | H62: 1 | I62: 2 | J62: 3 | K62: 4 | L62: 5 | M62: 6 | N62: 7 | O62: 8 | P62: 9 | Q62: 10 | R62: 11 | S62: 12 | T62: 13 | U62: 14 | V62: 15 | W62: 16 | X62: 17 | Y62: 18 | Z62: 19 | AA62: 20 | AC62: Lifetime
C64: Receitas
C65: Energia Evitada | AC65: =SUM(G65:AB65) -> 0
C66: Hidrogênio
C67: Outros | AC67: =SUM(G67:AB67) -> 0
C69: =C64 -> Receitas | E69: =Moeda -> BRL | H69: ='(5) Simulação e Fluxo de Caixa'!H47 -> 0 | I69: ='(5) Simulação e Fluxo de Caixa'!I47 -> 9428.692097 | J69: ='(5) Simulação e Fluxo de Caixa'!J47 -> 9334.405176 | K69: ='(5) Simulação e Fluxo de Caixa'!K47 -> 9241.061125 | L69: ='(5) Simulação e Fluxo de Caixa'!L47 -> 9148.650513 | M69: ='(5) Simulação e Fluxo de Caixa'!M47 -> 9057.164008 | N69: ='(5) Simulação e Fluxo de Caixa'!N47 -> 8966.592368 | O69: ='(5) Simulação e Fluxo de Caixa'!O47 -> 8876.926444 | P69: ='(5) Simulação e Fluxo de Caixa'!P47 -> 8788.15718 | Q69: ='(5) Simulação e Fluxo de Caixa'!Q47 -> 8700.275608 | R69: ='(5) Simulação e Fluxo de Caixa'!R47 -> 9428.692097 | S69: ='(5) Simulação e Fluxo de Caixa'!S47 -> 9334.405176 | T69: ='(5) Simulação e Fluxo de Caixa'!T47 -> 9241.061125 | U69: ='(5) Simulação e Fluxo de Caixa'!U47 -> 9148.650513 | V69: ='(5) Simulação e Fluxo de Caixa'!V47 -> 9057.164008 | W69: ='(5) Simulação e Fluxo de Caixa'!W47 -> 8966.592368 | X69: ='(5) Simulação e Fluxo de Caixa'!X47 -> 8876.926444 | Y69: ='(5) Simulação e Fluxo de Caixa'!Y47 -> 8788.15718 | Z69: ='(5) Simulação e Fluxo de Caixa'!Z47 -> 8700.275608 | AA69: ='(5) Simulação e Fluxo de Caixa'!AA47 -> 20185.72913 | AC69: =SUM(AC65:AC68) -> 0
C71: ='(5) Simulação e Fluxo de Caixa'!C49 -> Custos (milhares de BRL )
C72: Eletrolisador | E72: =Moeda -> BRL | G72: =SUM('(5) Simulação e Fluxo de Caixa'!G50:G54) -> 0 | H72: =SUM('(5) Simulação e Fluxo de Caixa'!H50:H54) -> 0 | I72: =SUM('(5) Simulação e Fluxo de Caixa'!I50:I54) -> -7472.8084 | J72: =SUM('(5) Simulação e Fluxo de Caixa'!J50:J54) -> -7472.8084 | K72: =SUM('(5) Simulação e Fluxo de Caixa'!K50:K54) -> -7472.8084 | L72: =SUM('(5) Simulação e Fluxo de Caixa'!L50:L54) -> -7472.8084 | M72: =SUM('(5) Simulação e Fluxo de Caixa'!M50:M54) -> -7472.8084 | N72: =SUM('(5) Simulação e Fluxo de Caixa'!N50:N54) -> -7472.8084 | O72: =SUM('(5) Simulação e Fluxo de Caixa'!O50:O54) -> -7472.8084 | P72: =SUM('(5) Simulação e Fluxo de Caixa'!P50:P54) -> -7472.8084 | Q72: =SUM('(5) Simulação e Fluxo de Caixa'!Q50:Q54) -> -14733.8084 | R72: =SUM('(5) Simulação e Fluxo de Caixa'!R50:R54) -> -7472.8084 | S72: =SUM('(5) Simulação e Fluxo de Caixa'!S50:S54) -> -7472.8084 | T72: =SUM('(5) Simulação e Fluxo de Caixa'!T50:T54) -> -7472.8084 | U72: =SUM('(5) Simulação e Fluxo de Caixa'!U50:U54) -> -7472.8084 | V72: =SUM('(5) Simulação e Fluxo de Caixa'!V50:V54) -> -7472.8084 | W72: =SUM('(5) Simulação e Fluxo de Caixa'!W50:W54) -> -7472.8084 | X72: =SUM('(5) Simulação e Fluxo de Caixa'!X50:X54) -> -7472.8084 | Y72: =SUM('(5) Simulação e Fluxo de Caixa'!Y50:Y54) -> -7472.8084 | Z72: =SUM('(5) Simulação e Fluxo de Caixa'!Z50:Z54) -> -14733.8084 | AA72: =SUM('(5) Simulação e Fluxo de Caixa'!AA50:AA54) -> -7472.8084 | AC72: =SUM(G72:AB72) -> -156505.3596
C73: TBD | E73: =Moeda -> BRL | AC73: =SUM(G73:AB73) -> 0
C74: TBD | E74: =Moeda -> BRL | AC74: =SUM(G74:AB74) -> 0
C76: =C71 -> Custos (milhares de BRL ) | E76: =Moeda -> BRL | G76: =SUM(G72:G74) -> 0 | H76: 0 | I76: -7472.8084 | J76: -7472.8084 | K76: -7472.8084 | L76: -7472.8084 | M76: -7472.8084 | N76: -7472.8084 | O76: -7472.8084 | P76: -7472.8084 | Q76: -14733.8084 | R76: -7472.8084 | S76: -7472.8084 | T76: -7472.8084 | U76: -7472.8084 | V76: -7472.8084 | W76: -7472.8084 | X76: -7472.8084 | Y76: -7472.8084 | Z76: -14733.8084 | AA76: -7472.8084 | AC76: =-SUM(AC72:AC75) -> 156505.3596
G77: =G76/(1+TxDesconto)^COUNT($G$76:G76) -> 0 | H77: =H76/(1+TxDesconto)^COUNT($G$76:H76) -> 0 | I77: =I76/(1+TxDesconto)^COUNT($G$76:I76) -> -6455.292862 | J77: =J76/(1+TxDesconto)^COUNT($G$76:J76) -> -6147.897964 | K77: =K76/(1+TxDesconto)^COUNT($G$76:K76) -> -5855.140918 | L77: =L76/(1+TxDesconto)^COUNT($G$76:L76) -> -5576.324684 | M77: =M76/(1+TxDesconto)^COUNT($G$76:M76) -> -5310.785413 | N77: =N76/(1+TxDesconto)^COUNT($G$76:N76) -> -5057.89087 | O77: =O76/(1+TxDesconto)^COUNT($G$76:O76) -> -4817.038924 | P77: =P76/(1+TxDesconto)^COUNT($G$76:P76) -> -4587.656118 | Q77: =Q76/(1+TxDesconto)^COUNT($G$76:Q76) -> -8614.552621 | R77: =R76/(1+TxDesconto)^COUNT($G$76:R76) -> -4161.139336 | S77: =S76/(1+TxDesconto)^COUNT($G$76:S76) -> -3962.989844 | T77: =T76/(1+TxDesconto)^COUNT($G$76:T76) -> -3774.276042 | U77: =U76/(1+TxDesconto)^COUNT($G$76:U76) -> -3594.548611 | V77: =V76/(1+TxDesconto)^COUNT($G$76:V76) -> -3423.37963 | W77: =W76/(1+TxDesconto)^COUNT($G$76:W76) -> -3260.361552 | X77: =X76/(1+TxDesconto)^COUNT($G$76:X76) -> -3105.10624 | Y77: =Y76/(1+TxDesconto)^COUNT($G$76:Y76) -> -2957.244038 | Z77: =Z76/(1+TxDesconto)^COUNT($G$76:Z76) -> -5553.017429 | AA77: =AA76/(1+TxDesconto)^COUNT($G$76:AA76) -> -2682.307518
C78: Investimento
C79: Alocação de Investimentos | E79: % | G79: ='(5) Simulação e Fluxo de Caixa'!G60 -> 0.8 | H79: ='(5) Simulação e Fluxo de Caixa'!H60 -> 0.2 | I79: ='(5) Simulação e Fluxo de Caixa'!I60 -> 0 | J79: ='(5) Simulação e Fluxo de Caixa'!J60 -> 0 | K79: ='(5) Simulação e Fluxo de Caixa'!K60 -> 0 | L79: ='(5) Simulação e Fluxo de Caixa'!L60 -> 0 | AC79: =SUM(G79:AB79) -> 1 | AF79: =(1-AC79)*1000 -> 0
C83: =C78 -> Investimento | E83: =Moeda -> BRL | G83: ='(5) Simulação e Fluxo de Caixa'!G64 -> -43566 | H83: ='(5) Simulação e Fluxo de Caixa'!H64 -> -10891.5 | I83: ='(5) Simulação e Fluxo de Caixa'!I64 -> 0 | J83: ='(5) Simulação e Fluxo de Caixa'!J64 -> 0 | K83: ='(5) Simulação e Fluxo de Caixa'!K64 -> 0 | L83: ='(5) Simulação e Fluxo de Caixa'!L64 -> 0 | AC83: =SUM(G83:AB83) -> -54457.5
C86: Fluxos de Caixa
C87: Fluxos de Caixa | E87: =Moeda -> BRL | G87: =G69+G76+G83 -> -43566 | H87: -10891.5 | I87: 1955.883697 | J87: 1861.596776 | K87: 1768.252725 | L87: 1675.842113 | M87: 1584.355608 | N87: 1493.783968 | O87: 1404.118044 | P87: 1315.34878 | Q87: -6033.532792 | R87: 1955.883697 | S87: 1861.596776 | T87: 1768.252725 | U87: 1675.842113 | V87: 1584.355608 | W87: 1493.783968 | X87: 1404.118044 | Y87: 1315.34878 | Z87: -6033.532792 | AA87: 12712.92073 | AC87: =AC69+AC76+AC83 -> 102047.8596
C88: Fluxo de Caixa Acumulado | E88: =Moeda -> BRL | G88: =+G87 -> -43566 | H88: =+G88+H87 -> -54457.5 | I88: -52501.6163 | J88: -50640.01953 | K88: -48871.7668 | L88: -47195.92469 | M88: -45611.56908 | N88: -44117.78511 | O88: -42713.66707 | P88: -41398.31829 | Q88: -47431.85108 | R88: -45475.96738 | S88: -43614.37061 | T88: -41846.11788 | U88: -40170.27577 | V88: -38585.92016 | W88: -37092.13619 | X88: -35688.01815 | Y88: -34372.66937 | Z88: -40406.20216 | AA88: -27693.28142 | AC88: =AA88 -> -27693.28142 | AF88: =AC87-AC88 -> 129741.141
C89: Valor presente dos fluxos de caixa | E89: =Moeda -> BRL | G89: =NPV(TxDesconto,H87:AA87)+G87 -> -38477.21806
C90: TIR (taxa interna de retorno) | E90: % | G90: =IRR(G87:AA87) -> -0.05145332457
C91: TIRM (TIR modificada) | E91: % | G91: =MIRR(G87:AA87,TxDesconto,TxDesconto) -> -0.002422985245
C93: Cálculo do LCOH
C94: Custos associados ao H2 | E94: =Moeda -> BRL | G94: ='(5) Simulação e Fluxo de Caixa'!G57+'(5) Simulação e Fluxo de Caixa'!G64 -> -43566 | H94: ='(5) Simulação e Fluxo de Caixa'!H57+'(5) Simulação e Fluxo de Caixa'!H64 -> -10891.5 | I94: ='(5) Simulação e Fluxo de Caixa'!I57+'(5) Simulação e Fluxo de Caixa'!I64 -> -7472.8084 | J94: ='(5) Simulação e Fluxo de Caixa'!J57+'(5) Simulação e Fluxo de Caixa'!J64 -> -7472.8084 | K94: ='(5) Simulação e Fluxo de Caixa'!K57+'(5) Simulação e Fluxo de Caixa'!K64 -> -7472.8084 | L94: ='(5) Simulação e Fluxo de Caixa'!L57+'(5) Simulação e Fluxo de Caixa'!L64 -> -7472.8084 | M94: ='(5) Simulação e Fluxo de Caixa'!M57+'(5) Simulação e Fluxo de Caixa'!M64 -> -7472.8084 | N94: ='(5) Simulação e Fluxo de Caixa'!N57+'(5) Simulação e Fluxo de Caixa'!N64 -> -7472.8084 | O94: ='(5) Simulação e Fluxo de Caixa'!O57+'(5) Simulação e Fluxo de Caixa'!O64 -> -7472.8084 | P94: ='(5) Simulação e Fluxo de Caixa'!P57+'(5) Simulação e Fluxo de Caixa'!P64 -> -7472.8084 | Q94: ='(5) Simulação e Fluxo de Caixa'!Q57+'(5) Simulação e Fluxo de Caixa'!Q64 -> -14733.8084 | R94: ='(5) Simulação e Fluxo de Caixa'!R57+'(5) Simulação e Fluxo de Caixa'!R64 -> -7472.8084 | S94: ='(5) Simulação e Fluxo de Caixa'!S57+'(5) Simulação e Fluxo de Caixa'!S64 -> -7472.8084 | T94: ='(5) Simulação e Fluxo de Caixa'!T57+'(5) Simulação e Fluxo de Caixa'!T64 -> -7472.8084 | U94: ='(5) Simulação e Fluxo de Caixa'!U57+'(5) Simulação e Fluxo de Caixa'!U64 -> -7472.8084 | V94: ='(5) Simulação e Fluxo de Caixa'!V57+'(5) Simulação e Fluxo de Caixa'!V64 -> -7472.8084 | W94: ='(5) Simulação e Fluxo de Caixa'!W57+'(5) Simulação e Fluxo de Caixa'!W64 -> -7472.8084 | X94: ='(5) Simulação e Fluxo de Caixa'!X57+'(5) Simulação e Fluxo de Caixa'!X64 -> -7472.8084 | Y94: ='(5) Simulação e Fluxo de Caixa'!Y57+'(5) Simulação e Fluxo de Caixa'!Y64 -> -7472.8084 | Z94: ='(5) Simulação e Fluxo de Caixa'!Z57+'(5) Simulação e Fluxo de Caixa'!Z64 -> -14733.8084 | AA94: ='(5) Simulação e Fluxo de Caixa'!AA57+'(5) Simulação e Fluxo de Caixa'!AA64 -> -7472.8084
C95: Receita do crédito de CO2 | E95: =Moeda -> BRL | G95: ='(5) Simulação e Fluxo de Caixa'!G44 -> 0 | H95: ='(5) Simulação e Fluxo de Caixa'!H44 -> 0 | I95: ='(5) Simulação e Fluxo de Caixa'!I44 -> 0 | J95: ='(5) Simulação e Fluxo de Caixa'!J44 -> 0 | K95: ='(5) Simulação e Fluxo de Caixa'!K44 -> 0 | L95: ='(5) Simulação e Fluxo de Caixa'!L44 -> 0 | M95: ='(5) Simulação e Fluxo de Caixa'!M44 -> 0 | N95: ='(5) Simulação e Fluxo de Caixa'!N44 -> 0 | O95: ='(5) Simulação e Fluxo de Caixa'!O44 -> 0 | P95: ='(5) Simulação e Fluxo de Caixa'!P44 -> 0 | Q95: ='(5) Simulação e Fluxo de Caixa'!Q44 -> 0 | R95: ='(5) Simulação e Fluxo de Caixa'!R44 -> 0 | S95: ='(5) Simulação e Fluxo de Caixa'!S44 -> 0 | T95: ='(5) Simulação e Fluxo de Caixa'!T44 -> 0 | U95: ='(5) Simulação e Fluxo de Caixa'!U44 -> 0 | V95: ='(5) Simulação e Fluxo de Caixa'!V44 -> 0 | W95: ='(5) Simulação e Fluxo de Caixa'!W44 -> 0 | X95: ='(5) Simulação e Fluxo de Caixa'!X44 -> 0 | Y95: ='(5) Simulação e Fluxo de Caixa'!Y44 -> 0 | Z95: ='(5) Simulação e Fluxo de Caixa'!Z44 -> 0 | AA95: ='(5) Simulação e Fluxo de Caixa'!AA44 -> 0
C96: Receita do aproveitamento do O2 | E96: BRL | G96: ='(5) Simulação e Fluxo de Caixa'!G43 -> 0 | H96: ='(5) Simulação e Fluxo de Caixa'!H43 -> 0 | I96: ='(5) Simulação e Fluxo de Caixa'!I43 -> 0 | J96: ='(5) Simulação e Fluxo de Caixa'!J43 -> 0 | K96: ='(5) Simulação e Fluxo de Caixa'!K43 -> 0 | L96: ='(5) Simulação e Fluxo de Caixa'!L43 -> 0 | M96: ='(5) Simulação e Fluxo de Caixa'!M43 -> 0 | N96: ='(5) Simulação e Fluxo de Caixa'!N43 -> 0 | O96: ='(5) Simulação e Fluxo de Caixa'!O43 -> 0 | P96: ='(5) Simulação e Fluxo de Caixa'!P43 -> 0 | Q96: ='(5) Simulação e Fluxo de Caixa'!Q43 -> 0 | R96: ='(5) Simulação e Fluxo de Caixa'!R43 -> 0 | S96: ='(5) Simulação e Fluxo de Caixa'!S43 -> 0 | T96: ='(5) Simulação e Fluxo de Caixa'!T43 -> 0 | U96: ='(5) Simulação e Fluxo de Caixa'!U43 -> 0 | V96: ='(5) Simulação e Fluxo de Caixa'!V43 -> 0 | W96: ='(5) Simulação e Fluxo de Caixa'!W43 -> 0 | X96: ='(5) Simulação e Fluxo de Caixa'!X43 -> 0 | Y96: ='(5) Simulação e Fluxo de Caixa'!Y43 -> 0 | Z96: ='(5) Simulação e Fluxo de Caixa'!Z43 -> 0 | AA96: ='(5) Simulação e Fluxo de Caixa'!AA43 -> 0
C97: Receita de valores residuais | E97: BRL | G97: ='(5) Simulação e Fluxo de Caixa'!G45 -> 0 | H97: ='(5) Simulação e Fluxo de Caixa'!H45 -> 0 | I97: ='(5) Simulação e Fluxo de Caixa'!I45 -> 0 | J97: ='(5) Simulação e Fluxo de Caixa'!J45 -> 0 | K97: ='(5) Simulação e Fluxo de Caixa'!K45 -> 0 | L97: ='(5) Simulação e Fluxo de Caixa'!L45 -> 0 | M97: ='(5) Simulação e Fluxo de Caixa'!M45 -> 0 | N97: ='(5) Simulação e Fluxo de Caixa'!N45 -> 0 | O97: ='(5) Simulação e Fluxo de Caixa'!O45 -> 0 | P97: ='(5) Simulação e Fluxo de Caixa'!P45 -> 0 | Q97: ='(5) Simulação e Fluxo de Caixa'!Q45 -> 0 | R97: ='(5) Simulação e Fluxo de Caixa'!R45 -> 0 | S97: ='(5) Simulação e Fluxo de Caixa'!S45 -> 0 | T97: ='(5) Simulação e Fluxo de Caixa'!T45 -> 0 | U97: ='(5) Simulação e Fluxo de Caixa'!U45 -> 0 | V97: ='(5) Simulação e Fluxo de Caixa'!V45 -> 0 | W97: ='(5) Simulação e Fluxo de Caixa'!W45 -> 0 | X97: ='(5) Simulação e Fluxo de Caixa'!X45 -> 0 | Y97: ='(5) Simulação e Fluxo de Caixa'!Y45 -> 0 | Z97: ='(5) Simulação e Fluxo de Caixa'!Z45 -> 0 | AA97: ='(5) Simulação e Fluxo de Caixa'!AA45 -> 10757.03704
C98: LCOH | E98: BRL/kg | G98: =-NPV(TxDesconto,G94:AA94)/NPV(TxDesconto,'(5) Simulação e Fluxo de Caixa'!G14:AA14) -> 18.29939515
C99: LCOH considerando receitas | E99: BRL/kg | G99: =-(NPV(TxDesconto,G94:AA94)+NPV(TxDesconto,G95:AA95)+NPV(TxDesconto,G96:AA96)+NPV(TxDesconto,G97:AA97))/NPV(TxDesconto,'(5) Simulação e Fluxo de Caixa'!G14:AA14) -> 17.79566527
C100: Preço break-even da fonte fóssil | E100: =Moeda&"/"&Unidade_fonte_substituida -> BRL/m3 | G100: =-(NPV(TxDesconto,G94:AA94)+NPV(TxDesconto,G95:AA95)+NPV(TxDesconto,G96:AA96)+NPV(TxDesconto,G97:AA97))/NPV(TxDesconto,'(5) Simulação e Fluxo de Caixa'!G22:AA22)*10^3 -> 5.469308007
C101: Payback Period
C102: Cálculo de payback | E102: Anos | H102: =IF(AND(H88>0,G88<0),-G88/H87+G102,IF(H88<0,G102+1,G102)) -> 1 | I102: 2 | J102: 3 | K102: 4 | L102: 5 | M102: 6 | N102: 7 | O102: 8 | P102: 9 | Q102: 10 | R102: 11 | S102: 12 | T102: 13 | U102: 14 | V102: 15 | W102: 16 | X102: 17 | Y102: 18 | Z102: 19 | AA102: 20 | AC102: =AA102 -> 20
C104: Gráfico
C105: =C87 -> Fluxos de Caixa | E105: TRUE | G105: =IF($E105,G87,"") -> -43566 | H105: -10891.5 | I105: 1955.883697 | J105: 1861.596776 | K105: 1768.252725 | L105: 1675.842113 | M105: 1584.355608 | N105: 1493.783968 | O105: 1404.118044 | P105: 1315.34878 | Q105: -6033.532792 | R105: 1955.883697 | S105: 1861.596776 | T105: 1768.252725 | U105: 1675.842113 | V105: 1584.355608 | W105: 1493.783968 | X105: 1404.118044 | Y105: 1315.34878 | Z105: -6033.532792 | AA105: 12712.92073
C106: =C88 -> Fluxo de Caixa Acumulado | E106: TRUE | G106: =IF($E106,G88,"") -> -43566 | H106: -54457.5 | I106: -52501.6163 | J106: -50640.01953 | K106: -48871.7668 | L106: -47195.92469 | M106: -45611.56908 | N106: -44117.78511 | O106: -42713.66707 | P106: -41398.31829 | Q106: -47431.85108 | R106: -45475.96738 | S106: -43614.37061 | T106: -41846.11788 | U106: -40170.27577 | V106: -38585.92016 | W106: -37092.13619 | X106: -35688.01815 | Y106: -34372.66937 | Z106: -40406.20216 | AA106: -27693.28142

Sheet (7) Análise de sensibilidade
D2: 7. Análise de Sensibilidade | AG2: =SUM(AG3:AG1048576) -> 0
D5: Análise de sensibilidade aplicadas sobre o VPL do projeto de substituição
D13: 7.1 Variação do VPL mantendo-se os parâmetros constantes, exceto: o custo da energia elétrica e o custo da fonte fóssil
G15: ='(4) Entrada de dados'!E79 -> VPL | H15: ='(4) Entrada de dados'!F79 -> Custo do Gás Natural | I15: ='(4) Entrada de dados'!G79 -> BRL/m3
G16: ='(4) Entrada de dados'!E80 -> -38477.21806 | H16: 0 | I16: 0.8 | J16: 1.6 | K16: 2.4 | L16: 3.2 | M16: 4 | N16: 4.8 | O16: 5.6 | P16: 6.4 | Q16: 7.2
F17: ='(4) Entrada de dados'!D81 -> Custo da energia elétrica | G17: 0 | H17: ='(4) Entrada de dados'!F81 -> -78193.60314 | I17: ='(4) Entrada de dados'!G81 -> -57243.75852 | J17: ='(4) Entrada de dados'!H81 -> -36293.9139 | K17: ='(4) Entrada de dados'!I81 -> -15344.06928 | L17: ='(4) Entrada de dados'!J81 -> 5605.775336 | M17: ='(4) Entrada de dados'!K81 -> 26555.61996 | N17: ='(4) Entrada de dados'!L81 -> 47505.46457 | O17: ='(4) Entrada de dados'!M81 -> 68455.30919 | P17: ='(4) Entrada de dados'!N81 -> 89405.15381 | Q17: ='(4) Entrada de dados'!O81 -> 110354.9984
F18: ='(4) Entrada de dados'!D82 -> BRL/MWh | G18: 30 | H18: ='(4) Entrada de dados'!F82 -> -91200.17075 | I18: ='(4) Entrada de dados'!G82 -> -70250.32613 | J18: ='(4) Entrada de dados'!H82 -> -49300.48151 | K18: ='(4) Entrada de dados'!I82 -> -28350.63689 | L18: ='(4) Entrada de dados'!J82 -> -7400.792268 | M18: ='(4) Entrada de dados'!K82 -> 13549.05235 | N18: ='(4) Entrada de dados'!L82 -> 34498.89697 | O18: ='(4) Entrada de dados'!M82 -> 55448.74159 | P18: ='(4) Entrada de dados'!N82 -> 76398.58621 | Q18: ='(4) Entrada de dados'!O82 -> 97348.43083
G19: 60 | H19: ='(4) Entrada de dados'!F83 -> -104206.7383 | I19: ='(4) Entrada de dados'!G83 -> -83256.89373 | J19: ='(4) Entrada de dados'!H83 -> -62307.04911 | K19: ='(4) Entrada de dados'!I83 -> -41357.20449 | L19: ='(4) Entrada de dados'!J83 -> -20407.35987 | M19: ='(4) Entrada de dados'!K83 -> 542.4847475 | N19: ='(4) Entrada de dados'!L83 -> 21492.32937 | O19: ='(4) Entrada de dados'!M83 -> 42442.17399 | P19: ='(4) Entrada de dados'!N83 -> 63392.01861 | Q19: ='(4) Entrada de dados'!O83 -> 84341.86323
G20: 90 | H20: ='(4) Entrada de dados'!F84 -> -117213.306 | I20: ='(4) Entrada de dados'!G84 -> -96263.46133 | J20: ='(4) Entrada de dados'!H84 -> -75313.61671 | K20: ='(4) Entrada de dados'!I84 -> -54363.7721 | L20: ='(4) Entrada de dados'!J84 -> -33413.92748 | M20: ='(4) Entrada de dados'!K84 -> -12464.08286 | N20: ='(4) Entrada de dados'!L84 -> 8485.761763 | O20: ='(4) Entrada de dados'!M84 -> 29435.60638 | P20: ='(4) Entrada de dados'!N84 -> 50385.451 | Q20: ='(4) Entrada de dados'!O84 -> 71335.29562
G21: 120 | H21: ='(4) Entrada de dados'!F85 -> -130219.8736 | I21: ='(4) Entrada de dados'!G85 -> -109270.0289 | J21: ='(4) Entrada de dados'!H85 -> -88320.18432 | K21: ='(4) Entrada de dados'!I85 -> -67370.3397 | L21: ='(4) Entrada de dados'!J85 -> -46420.49508 | M21: ='(4) Entrada de dados'!K85 -> -25470.65046 | N21: ='(4) Entrada de dados'!L85 -> -4520.805841 | O21: ='(4) Entrada de dados'!M85 -> 16429.03878 | P21: ='(4) Entrada de dados'!N85 -> 37378.8834 | Q21: ='(4) Entrada de dados'!O85 -> 58328.72802
G22: 150 | H22: ='(4) Entrada de dados'!F86 -> -143226.4412 | I22: ='(4) Entrada de dados'!G86 -> -122276.5965 | J22: ='(4) Entrada de dados'!H86 -> -101326.7519 | K22: ='(4) Entrada de dados'!I86 -> -80376.9073 | L22: ='(4) Entrada de dados'!J86 -> -59427.06268 | M22: ='(4) Entrada de dados'!K86 -> -38477.21806 | N22: ='(4) Entrada de dados'!L86 -> -17527.37344 | O22: ='(4) Entrada de dados'!M86 -> 3422.471175 | P22: ='(4) Entrada de dados'!N86 -> 24372.31579 | Q22: ='(4) Entrada de dados'!O86 -> 45322.16041
G23: 180 | H23: ='(4) Entrada de dados'!F87 -> -156233.0088 | I23: ='(4) Entrada de dados'!G87 -> -135283.1641 | J23: ='(4) Entrada de dados'!H87 -> -114333.3195 | K23: ='(4) Entrada de dados'!I87 -> -93383.47491 | L23: ='(4) Entrada de dados'!J87 -> -72433.63029 | M23: ='(4) Entrada de dados'!K87 -> -51483.78567 | N23: ='(4) Entrada de dados'!L87 -> -30533.94105 | O23: ='(4) Entrada de dados'!M87 -> -9584.096429 | P23: ='(4) Entrada de dados'!N87 -> 11365.74819 | Q23: ='(4) Entrada de dados'!O87 -> 32315.59281
G24: 210 | H24: ='(4) Entrada de dados'!F88 -> -169239.5764 | I24: ='(4) Entrada de dados'!G88 -> -148289.7317 | J24: ='(4) Entrada de dados'!H88 -> -127339.8871 | K24: ='(4) Entrada de dados'!I88 -> -106390.0425 | L24: ='(4) Entrada de dados'!J88 -> -85440.19789 | M24: ='(4) Entrada de dados'!K88 -> -64490.35327 | N24: ='(4) Entrada de dados'!L88 -> -43540.50865 | O24: ='(4) Entrada de dados'!M88 -> -22590.66403 | P24: ='(4) Entrada de dados'!N88 -> -1640.819414 | Q24: ='(4) Entrada de dados'!O88 -> 19309.02521
G25: 240 | H25: ='(4) Entrada de dados'!F89 -> -182246.144 | I25: ='(4) Entrada de dados'!G89 -> -161296.2994 | J25: ='(4) Entrada de dados'!H89 -> -140346.4547 | K25: ='(4) Entrada de dados'!I89 -> -119396.6101 | L25: ='(4) Entrada de dados'!J89 -> -98446.7655 | M25: ='(4) Entrada de dados'!K89 -> -77496.92088 | N25: ='(4) Entrada de dados'!L89 -> -56547.07626 | O25: ='(4) Entrada de dados'!M89 -> -35597.23164 | P25: ='(4) Entrada de dados'!N89 -> -14647.38702 | Q25: ='(4) Entrada de dados'!O89 -> 6302.457602
G26: 270 | H26: ='(4) Entrada de dados'!F90 -> -195252.7116 | I26: ='(4) Entrada de dados'!G90 -> -174302.867 | J26: ='(4) Entrada de dados'!H90 -> -153353.0223 | K26: ='(4) Entrada de dados'!I90 -> -132403.1777 | L26: ='(4) Entrada de dados'!J90 -> -111453.3331 | M26: ='(4) Entrada de dados'!K90 -> -90503.48848 | N26: ='(4) Entrada de dados'!L90 -> -69553.64386 | O26: ='(4) Entrada de dados'!M90 -> -48603.79924 | P26: ='(4) Entrada de dados'!N90 -> -27653.95462 | Q26: ='(4) Entrada de dados'!O90 -> -6704.110002
D28: 7.2 Variação do VPL mantendo-se os parâmetros constantes, exceto: o custo unitário do eletrolisador e o custo da fonte fóssil
G30: ='(4) Entrada de dados'!E79 -> VPL | H30: ='(4) Entrada de dados'!F79 -> Custo do Gás Natural | I30: ='(4) Entrada de dados'!G79 -> BRL/m3
G31: ='(4) Entrada de dados'!E93 -> -38477.21806 | H31: 0 | I31: 0.8 | J31: 1.6 | K31: 2.4 | L31: 3.2 | M31: 4 | N31: 4.8 | O31: 5.6 | P31: 6.4 | Q31: 7.2
F32: ='(4) Entrada de dados'!D94 -> Custo unitário do eletrolisador por unidade de potência instalada | G32: 0 | H32: ='(4) Entrada de dados'!F94 -> -65117.53195 | I32: ='(4) Entrada de dados'!G94 -> -44167.68733 | J32: ='(4) Entrada de dados'!H94 -> -23217.84271 | K32: ='(4) Entrada de dados'!I94 -> -2267.99809 | L32: ='(4) Entrada de dados'!J94 -> 18681.84653 | M32: ='(4) Entrada de dados'!K94 -> 39631.69115 | N32: ='(4) Entrada de dados'!L94 -> 60581.53577 | O32: ='(4) Entrada de dados'!M94 -> 81531.38039 | P32: ='(4) Entrada de dados'!N94 -> 102481.225 | Q32: ='(4) Entrada de dados'!O94 -> 123431.0696
F33: ='(4) Entrada de dados'!D95 -> BRL/kW | G33: 1452.2 | H33: ='(4) Entrada de dados'!F95 -> -80739.31379 | I33: ='(4) Entrada de dados'!G95 -> -59789.46917 | J33: ='(4) Entrada de dados'!H95 -> -38839.62455 | K33: ='(4) Entrada de dados'!I95 -> -17889.77993 | L33: ='(4) Entrada de dados'!J95 -> 3060.064687 | M33: ='(4) Entrada de dados'!K95 -> 24009.90931 | N33: ='(4) Entrada de dados'!L95 -> 44959.75393 | O33: ='(4) Entrada de dados'!M95 -> 65909.59855 | P33: ='(4) Entrada de dados'!N95 -> 86859.44316 | Q33: ='(4) Entrada de dados'!O95 -> 107809.2878
G34: 2904.4 | H34: ='(4) Entrada de dados'!F96 -> -96361.09563 | I34: ='(4) Entrada de dados'!G96 -> -75411.25101 | J34: ='(4) Entrada de dados'!H96 -> -54461.40639 | K34: ='(4) Entrada de dados'!I96 -> -33511.56178 | L34: ='(4) Entrada de dados'!J96 -> -12561.71716 | M34: ='(4) Entrada de dados'!K96 -> 8388.127464 | N34: ='(4) Entrada de dados'!L96 -> 29337.97208 | O34: ='(4) Entrada de dados'!M96 -> 50287.8167 | P34: ='(4) Entrada de dados'!N96 -> 71237.66132 | Q34: ='(4) Entrada de dados'!O96 -> 92187.50594
G35: 4356.6 | H35: ='(4) Entrada de dados'!F97 -> -111982.8775 | I35: ='(4) Entrada de dados'!G97 -> -91033.03286 | J35: ='(4) Entrada de dados'!H97 -> -70083.18824 | K35: ='(4) Entrada de dados'!I97 -> -49133.34362 | L35: ='(4) Entrada de dados'!J97 -> -28183.499 | M35: ='(4) Entrada de dados'!K97 -> -7233.654379 | N35: ='(4) Entrada de dados'!L97 -> 13716.19024 | O35: ='(4) Entrada de dados'!M97 -> 34666.03486 | P35: ='(4) Entrada de dados'!N97 -> 55615.87948 | Q35: ='(4) Entrada de dados'!O97 -> 76565.7241
G36: 5808.8 | H36: ='(4) Entrada de dados'!F98 -> -127604.6593 | I36: ='(4) Entrada de dados'!G98 -> -106654.8147 | J36: ='(4) Entrada de dados'!H98 -> -85704.97008 | K36: ='(4) Entrada de dados'!I98 -> -64755.12546 | L36: ='(4) Entrada de dados'!J98 -> -43805.28084 | M36: ='(4) Entrada de dados'!K98 -> -22855.43622 | N36: ='(4) Entrada de dados'!L98 -> -1905.591602 | O36: ='(4) Entrada de dados'!M98 -> 19044.25302 | P36: ='(4) Entrada de dados'!N98 -> 39994.09764 | Q36: ='(4) Entrada de dados'!O98 -> 60943.94226
G37: 7261 | H37: ='(4) Entrada de dados'!F99 -> -143226.4412 | I37: ='(4) Entrada de dados'!G99 -> -122276.5965 | J37: ='(4) Entrada de dados'!H99 -> -101326.7519 | K37: ='(4) Entrada de dados'!I99 -> -80376.9073 | L37: ='(4) Entrada de dados'!J99 -> -59427.06268 | M37: ='(4) Entrada de dados'!K99 -> -38477.21806 | N37: ='(4) Entrada de dados'!L99 -> -17527.37344 | O37: ='(4) Entrada de dados'!M99 -> 3422.471175 | P37: ='(4) Entrada de dados'!N99 -> 24372.31579 | Q37: ='(4) Entrada de dados'!O99 -> 45322.16041
G38: 8713.2 | H38: ='(4) Entrada de dados'!F100 -> -158848.223 | I38: ='(4) Entrada de dados'!G100 -> -137898.3784 | J38: ='(4) Entrada de dados'!H100 -> -116948.5338 | K38: ='(4) Entrada de dados'!I100 -> -95998.68915 | L38: ='(4) Entrada de dados'!J100 -> -75048.84453 | M38: ='(4) Entrada de dados'!K100 -> -54098.99991 | N38: ='(4) Entrada de dados'!L100 -> -33149.15529 | O38: ='(4) Entrada de dados'!M100 -> -12199.31067 | P38: ='(4) Entrada de dados'!N100 -> 8750.533951 | Q38: ='(4) Entrada de dados'!O100 -> 29700.37857
G39: 10165.4 | H39: ='(4) Entrada de dados'!F101 -> -174470.0048 | I39: ='(4) Entrada de dados'!G101 -> -153520.1602 | J39: ='(4) Entrada de dados'!H101 -> -132570.3156 | K39: ='(4) Entrada de dados'!I101 -> -111620.471 | L39: ='(4) Entrada de dados'!J101 -> -90670.62637 | M39: ='(4) Entrada de dados'!K101 -> -69720.78175 | N39: ='(4) Entrada de dados'!L101 -> -48770.93713 | O39: ='(4) Entrada de dados'!M101 -> -27821.09251 | P39: ='(4) Entrada de dados'!N101 -> -6871.247891 | Q39: ='(4) Entrada de dados'!O101 -> 14078.59673
G40: 11617.6 | H40: ='(4) Entrada de dados'!F102 -> -190091.7867 | I40: ='(4) Entrada de dados'!G102 -> -169141.9421 | J40: ='(4) Entrada de dados'!H102 -> -148192.0975 | K40: ='(4) Entrada de dados'!I102 -> -127242.2528 | L40: ='(4) Entrada de dados'!J102 -> -106292.4082 | M40: ='(4) Entrada de dados'!K102 -> -85342.56359 | N40: ='(4) Entrada de dados'!L102 -> -64392.71897 | O40: ='(4) Entrada de dados'!M102 -> -43442.87435 | P40: ='(4) Entrada de dados'!N102 -> -22493.02973 | Q40: ='(4) Entrada de dados'!O102 -> -1543.185115
G41: 13069.8 | H41: ='(4) Entrada de dados'!F103 -> -205713.5685 | I41: ='(4) Entrada de dados'!G103 -> -184763.7239 | J41: ='(4) Entrada de dados'!H103 -> -163813.8793 | K41: ='(4) Entrada de dados'!I103 -> -142864.0347 | L41: ='(4) Entrada de dados'!J103 -> -121914.1901 | M41: ='(4) Entrada de dados'!K103 -> -100964.3454 | N41: ='(4) Entrada de dados'!L103 -> -80014.50082 | O41: ='(4) Entrada de dados'!M103 -> -59064.6562 | P41: ='(4) Entrada de dados'!N103 -> -38114.81158 | Q41: ='(4) Entrada de dados'!O103 -> -17164.96696
D43: 7.3 Variação do VPL mantendo-se os parâmetros constantes, exceto: o custo da energia elétrica e o custo da fonte fóssil
G45: ='(4) Entrada de dados'!E79 -> VPL | H45: ='(4) Entrada de dados'!F79 -> Custo do Gás Natural | I45: ='(4) Entrada de dados'!G79 -> BRL/m3
G46: ='(4) Entrada de dados'!E106 -> -38477.21806 | H46: 0 | I46: 0.8 | J46: 1.6 | K46: 2.4 | L46: 3.2 | M46: 4 | N46: 4.8 | O46: 5.6 | P46: 6.4 | Q46: 7.2
F47: ='(4) Entrada de dados'!D107 -> Taxa de Desconto | G47: 0 | H47: ='(4) Entrada de dados'!F107 -> -200205.8226 | I47: ='(4) Entrada de dados'!G107 -> -165703.3143 | J47: ='(4) Entrada de dados'!H107 -> -131200.8061 | K47: ='(4) Entrada de dados'!I107 -> -96698.29788 | L47: ='(4) Entrada de dados'!J107 -> -62195.78965 | M47: ='(4) Entrada de dados'!K107 -> -27693.28142 | N47: ='(4) Entrada de dados'!L107 -> 6809.226803 | O47: ='(4) Entrada de dados'!M107 -> 41311.73503 | P47: ='(4) Entrada de dados'!N107 -> 75814.24326 | Q47: ='(4) Entrada de dados'!O107 -> 110316.7515
F48: ='(4) Entrada de dados'!D108 -> a.a. | G48: 0.01 | H48: ='(4) Entrada de dados'!F108 -> -185569.4408 | I48: ='(4) Entrada de dados'!G108 -> -154584.2206 | J48: ='(4) Entrada de dados'!H108 -> -123599.0003 | K48: ='(4) Entrada de dados'!I108 -> -92613.78005 | L48: ='(4) Entrada de dados'!J108 -> -61628.55979 | M48: ='(4) Entrada de dados'!K108 -> -30643.33953 | N48: ='(4) Entrada de dados'!L108 -> 341.8807277 | O48: ='(4) Entrada de dados'!M108 -> 31327.10099 | P48: ='(4) Entrada de dados'!N108 -> 62312.32125 | Q48: ='(4) Entrada de dados'!O108 -> 93297.54151
G49: 0.02 | H49: ='(4) Entrada de dados'!F109 -> -172810.3321 | I49: ='(4) Entrada de dados'!G109 -> -144872.4299 | J49: ='(4) Entrada de dados'!H109 -> -116934.5277 | K49: ='(4) Entrada de dados'!I109 -> -88996.62548 | L49: ='(4) Entrada de dados'!J109 -> -61058.72328 | M49: ='(4) Entrada de dados'!K109 -> -33120.82108 | N49: ='(4) Entrada de dados'!L109 -> -5182.918882 | O49: ='(4) Entrada de dados'!M109 -> 22754.98332 | P49: ='(4) Entrada de dados'!N109 -> 50692.88552 | Q49: ='(4) Entrada de dados'!O109 -> 78630.78771
G50: 0.03 | H50: ='(4) Entrada de dados'!F110 -> -161649.4393 | I50: ='(4) Entrada de dados'!G110 -> -136361.405 | J50: ='(4) Entrada de dados'!H110 -> -111073.3706 | K50: ='(4) Entrada de dados'!I110 -> -85785.33626 | L50: ='(4) Entrada de dados'!J110 -> -60497.3019 | M50: ='(4) Entrada de dados'!K110 -> -35209.26754 | N50: ='(4) Entrada de dados'!L110 -> -9921.233184 | O50: ='(4) Entrada de dados'!M110 -> 15366.80117 | P50: ='(4) Entrada de dados'!N110 -> 40654.83553 | Q50: ='(4) Entrada de dados'!O110 -> 65942.86989
G51: 0.04 | H51: ='(4) Entrada de dados'!F111 -> -151853.3871 | I51: ='(4) Entrada de dados'!G111 -> -128877.9871 | J51: ='(4) Entrada de dados'!H111 -> -105902.587 | K51: ='(4) Entrada de dados'!I111 -> -82927.18697 | L51: ='(4) Entrada de dados'!J111 -> -59951.78692 | M51: ='(4) Entrada de dados'!K111 -> -36976.38687 | N51: ='(4) Entrada de dados'!L111 -> -14000.98682 | O51: ='(4) Entrada de dados'!M111 -> 8974.413226 | P51: ='(4) Entrada de dados'!N111 -> 31949.81328 | Q51: ='(4) Entrada de dados'!O111 -> 54925.21332
G52: 0.05 | H52: ='(4) Entrada de dados'!F112 -> -143226.4412 | I52: ='(4) Entrada de dados'!G112 -> -122276.5965 | J52: ='(4) Entrada de dados'!H112 -> -101326.7519 | K52: ='(4) Entrada de dados'!I112 -> -80376.9073 | L52: ='(4) Entrada de dados'!J112 -> -59427.06268 | M52: ='(4) Entrada de dados'!K112 -> -38477.21806 | N52: ='(4) Entrada de dados'!L112 -> -17527.37344 | O52: ='(4) Entrada de dados'!M112 -> 3422.471175 | P52: ='(4) Entrada de dados'!N112 -> 24372.31579 | Q52: ='(4) Entrada de dados'!O112 -> 45322.16041
G53: 0.06 | H53: ='(4) Entrada de dados'!F113 -> -135603.9688 | I53: ='(4) Entrada de dados'!G113 -> -116434.502 | J53: ='(4) Entrada de dados'!H113 -> -97265.03509 | K53: ='(4) Entrada de dados'!I113 -> -78095.56822 | L53: ='(4) Entrada de dados'!J113 -> -58926.10135 | M53: ='(4) Entrada de dados'!K113 -> -39756.63448 | N53: ='(4) Entrada de dados'!L113 -> -20587.1676 | O53: ='(4) Entrada de dados'!M113 -> -1417.700732 | P53: ='(4) Entrada de dados'!N113 -> 17751.76614 | Q53: ='(4) Entrada de dados'!O113 -> 36921.23301
G54: 0.07 | H54: ='(4) Entrada de dados'!F114 -> -128847.106 | I54: ='(4) Entrada de dados'!G114 -> -111247.9507 | J54: ='(4) Entrada de dados'!H114 -> -93648.79541 | K54: ='(4) Entrada de dados'!I114 -> -76049.64014 | L54: ='(4) Entrada de dados'!J114 -> -58450.48487 | M54: ='(4) Entrada de dados'!K114 -> -40851.3296 | N54: ='(4) Entrada de dados'!L114 -> -23252.17433 | O54: ='(4) Entrada de dados'!M114 -> -5653.019065 | P54: ='(4) Entrada de dados'!N114 -> 11946.1362 | Q54: ='(4) Entrada de dados'!O114 -> 29545.29147
G55: 0.08 | H55: ='(4) Entrada de dados'!F115 -> -122838.3958 | I55: ='(4) Entrada de dados'!G115 -> -106628.996 | J55: ='(4) Entrada de dados'!H115 -> -90419.59614 | K55: ='(4) Entrada de dados'!I115 -> -74210.19631 | L55: ='(4) Entrada de dados'!J115 -> -58000.79648 | M55: ='(4) Entrada de dados'!K115 -> -41791.39665 | N55: ='(4) Entrada de dados'!L115 -> -25581.99682 | O55: ='(4) Entrada de dados'!M115 -> -9372.596995 | P55: ='(4) Entrada de dados'!N115 -> 6836.802835 | Q55: ='(4) Entrada de dados'!O115 -> 23046.20266
G56: 0.09 | H56: ='(4) Entrada de dados'!F116 -> -117478.2137 | I56: ='(4) Entrada de dados'!G116 -> -102502.8887 | J56: ='(4) Entrada de dados'!H116 -> -87527.5636 | K56: ='(4) Entrada de dados'!I116 -> -72552.23852 | L56: ='(4) Entrada de dados'!J116 -> -57576.91345 | M56: ='(4) Entrada de dados'!K116 -> -42601.58838 | N56: ='(4) Entrada de dados'!L116 -> -27626.26331 | O56: ='(4) Entrada de dados'!M116 -> -12650.93824 | P56: ='(4) Entrada de dados'!N116 -> 2324.386836 | Q56: ='(4) Entrada de dados'!O116 -> 17299.71191
